Department Family,Entity,Date,Expense Type,Expense Area,Supplier,Transaction Number,AP Amount,Description,Supplier Postcode
Department of Health,NHS Sheffield CCG,12/31/2020,C&M-PMS Contract Value,PRC DELEGATED CO-COMMISSIONING,ABBEY LANE SURGERY,34893455,"24,794.96",BABALP,S8 0BJ
Department of Health,NHS Sheffield CCG,12/31/2020,C&M-PMS Funding Differential Review,PRC DELEGATED CO-COMMISSIONING,ABBEY LANE SURGERY,34893455,454.56,ZFUNFP,S8 0BJ
Department of Health,NHS Sheffield CCG,12/31/2020,C&M-PMS PCN DES Participation,PRC DELEGATED CO-COMMISSIONING,ABBEY LANE SURGERY,34893455,900.11,PARTIP,S8 0BJ
Department of Health,NHS Sheffield CCG,12/31/2020,C&M-PMS Prem Notional Rent,PRC DELEGATED CO-COMMISSIONING,ABBEY LANE SURGERY,34893455,"2,166.67",NRENT,S8 0BJ
Department of Health,NHS Sheffield CCG,12/31/2020,C&M-PMS Prem Rates,PRC DELEGATED CO-COMMISSIONING,ABBEY LANE SURGERY,34893455,773.00,RANDRP,S8 0BJ
Department of Health,NHS Sheffield CCG,12/31/2020,C&M-PMS QOF Aspiration,PRC DELEGATED CO-COMMISSIONING,ABBEY LANE SURGERY,34893455,"2,440.19",QUASPP,S8 0BJ
Department of Health,NHS Sheffield CCG,12/31/2020,Cont Care-Physical Disab (65+),CHC ADULT FULLY FUNDED,ABBEYCARE NURSING,34861988,"56,420.62",,S35 9YY
Department of Health,NHS Sheffield CCG,12/31/2020,Cont Care-Physical Disab (65+),CHC ADULT FULLY FUNDED,ABBEYCARE NURSING,34989087,"54,600.60",,S35 9YY
Department of Health,NHS Sheffield CCG,12/31/2020,Clinical&Medical-Voluntary Sector,COMMUNITY SERVICES,AGE UK SHEFFIELD,35086007,"30,000.00",,S2 3FG
Department of Health,NHS Sheffield CCG,12/31/2020,Hcare Srv Rec Fdtn Trust-Contract Baseline,ACUTE COMMISSIONING,BARNSLEY HOSPITAL NHS FOUNDATION TRUST,34937493,"131,016.71",,S75 2EP
Department of Health,NHS Sheffield CCG,12/31/2020,C&M-PMS Contract Value,PRC DELEGATED CO-COMMISSIONING,BARNSLEY ROAD SURGERY,34893457,"21,247.40",BABALP,S5 0QJ
Department of Health,NHS Sheffield CCG,12/31/2020,C&M-PMS Funding Differential Review,PRC DELEGATED CO-COMMISSIONING,BARNSLEY ROAD SURGERY,34893457,506.44,ZFUNFP,S5 0QJ
Department of Health,NHS Sheffield CCG,12/31/2020,C&M-PMS PCN DES Participation,PRC DELEGATED CO-COMMISSIONING,BARNSLEY ROAD SURGERY,34893457,788.19,PARTIP,S5 0QJ
Department of Health,NHS Sheffield CCG,12/31/2020,C&M-PMS PCO Other,PRC DELEGATED CO-COMMISSIONING,BARNSLEY ROAD SURGERY,34893457,"1,755.00",CQCRP,S5 0QJ
Department of Health,NHS Sheffield CCG,12/31/2020,C&M-PMS Prem Notional Rent,PRC DELEGATED CO-COMMISSIONING,BARNSLEY ROAD SURGERY,34893457,"2,652.17",NRENT,S5 0QJ
Department of Health,NHS Sheffield CCG,12/31/2020,C&M-PMS QOF Aspiration,PRC DELEGATED CO-COMMISSIONING,BARNSLEY ROAD SURGERY,34893457,"2,289.13",QUASPP,S5 0QJ
Department of Health,NHS Sheffield CCG,12/31/2020,C&M-GMS Other Addtl Staff Paymts,PRC DELEGATED CO-COMMISSIONING,BASLOW ROAD & SHOREHAM STREET SURGERIES,34991999,"30,194.00",COVID CAPACITY EXPANSION FUND 202021,S17 4DR
Department of Health,NHS Sheffield CCG,12/31/2020,C&M-GMS DES Minor Surgery,PRC DELEGATED CO-COMMISSIONING,BASLOW ROAD & SHOREHAM STREET SURGERIES,35080375,80.00,DEMSUG,S17 4DR
Department of Health,NHS Sheffield CCG,12/31/2020,C&M-GMS Global Sum,PRC DELEGATED CO-COMMISSIONING,BASLOW ROAD & SHOREHAM STREET SURGERIES,35080375,"99,720.37",GSUMG,S17 4DR
Department of Health,NHS Sheffield CCG,12/31/2020,C&M-GMS PCN DES Participation,PRC DELEGATED CO-COMMISSIONING,BASLOW ROAD & SHOREHAM STREET SURGERIES,35080375,"3,972.12",PARTIG,S17 4DR
Department of Health,NHS Sheffield CCG,12/31/2020,C&M-GMS Prem Notional Rent,PRC DELEGATED CO-COMMISSIONING,BASLOW ROAD & SHOREHAM STREET SURGERIES,35080375,"8,222.71",NRENT,S17 4DR
Department of Health,NHS Sheffield CCG,12/31/2020,C&M-GMS Prem Rates,PRC DELEGATED CO-COMMISSIONING,BASLOW ROAD & SHOREHAM STREET SURGERIES,35080375,"1,954.00",RANDR,S17 4DR
Department of Health,NHS Sheffield CCG,12/31/2020,C&M-GMS Prem Water Rates,PRC DELEGATED CO-COMMISSIONING,BASLOW ROAD & SHOREHAM STREET SURGERIES,35080375,94.19,RAMW,S17 4DR
Department of Health,NHS Sheffield CCG,12/31/2020,C&M-GMS QOF Aspiration,PRC DELEGATED CO-COMMISSIONING,BASLOW ROAD & SHOREHAM STREET SURGERIES,35080375,"10,305.33",QUASPG,S17 4DR
Department of Health,NHS Sheffield CCG,12/31/2020,Cont Care-Physical Disab (65+),CHC ADULT FULLY FUNDED,BC SHEFFIELD LTD,34989078,"41,696.43",https://nww.einvoice-prod.sbs.nhs.uk:8179/invoicepdf/3ac216a7-b89a-5462-8edc-91ed80f964df,S9 2TJ
Department of Health,NHS Sheffield CCG,12/31/2020,C&M-PMS Contract Value,PRC DELEGATED CO-COMMISSIONING,BIRLEY HEALTH CENTRE,34893459,"66,415.11",BABALP,S12 3BP
Department of Health,NHS Sheffield CCG,12/31/2020,C&M-PMS Funding Differential Review,PRC DELEGATED CO-COMMISSIONING,BIRLEY HEALTH CENTRE,34893459,"1,118.40",ZFUNFP,S12 3BP
Department of Health,NHS Sheffield CCG,12/31/2020,C&M-PMS Out of Hours Opt Outs,PRC DELEGATED CO-COMMISSIONING,BIRLEY HEALTH CENTRE,34893459,11.70,APMOOH,S12 3BP
Department of Health,NHS Sheffield CCG,12/31/2020,C&M-PMS PCN DES Participation,PRC DELEGATED CO-COMMISSIONING,BIRLEY HEALTH CENTRE,34893459,"2,447.94",PARTIP,S12 3BP
Department of Health,NHS Sheffield CCG,12/31/2020,C&M-PMS PCO Other,PRC DELEGATED CO-COMMISSIONING,BIRLEY HEALTH CENTRE,34893459,539.80,CQCRP,S12 3BP
Department of Health,NHS Sheffield CCG,12/31/2020,C&M-PMS Prem Notional Rent,PRC DELEGATED CO-COMMISSIONING,BIRLEY HEALTH CENTRE,34893459,"7,600.58",NRENT,S12 3BP
Department of Health,NHS Sheffield CCG,12/31/2020,C&M-PMS Prem Rates,PRC DELEGATED CO-COMMISSIONING,BIRLEY HEALTH CENTRE,34893459,"1,697.00",RANDRP,S12 3BP
Department of Health,NHS Sheffield CCG,12/31/2020,C&M-PMS Prem Water Rates,PRC DELEGATED CO-COMMISSIONING,BIRLEY HEALTH CENTRE,34893459,213.76,RAMWP,S12 3BP
Department of Health,NHS Sheffield CCG,12/31/2020,C&M-PMS QOF Aspiration,PRC DELEGATED CO-COMMISSIONING,BIRLEY HEALTH CENTRE,34893459,"6,800.34",QUASPP,S12 3BP
Department of Health,NHS Sheffield CCG,12/31/2020,Cont Care-Funded Nursing Care Allow,FUNDED NURSING CARE,BONDCARE,34936672,"34,971.00",FNC SCHEDULE DECEMBER 2020 - Chatsworth Grange Nursing Home,NW4 4EF
Department of Health,NHS Sheffield CCG,12/31/2020,C&M-GMS Cost of Drugs -Prescribing,LOCAL ENHANCED SERVICES,BROOMHILL SURGERY,35080382,"15,123.87",DRGP,S10 5BU
Department of Health,NHS Sheffield CCG,12/31/2020,C&M-GMS DES Minor Surgery,PRC DELEGATED CO-COMMISSIONING,BROOMHILL SURGERY,35080382,320.00,DEMSUG,S10 5BU
Department of Health,NHS Sheffield CCG,12/31/2020,C&M-GMS Global Sum,PRC DELEGATED CO-COMMISSIONING,BROOMHILL SURGERY,35080382,"67,368.43",GSUMG,S10 5BU
Department of Health,NHS Sheffield CCG,12/31/2020,C&M-GMS PCN DES Participation,PRC DELEGATED CO-COMMISSIONING,BROOMHILL SURGERY,35080382,"2,661.46",PARTIG,S10 5BU
Department of Health,NHS Sheffield CCG,12/31/2020,C&M-GMS PCO Locum Sickness,PRC DELEGATED CO-COMMISSIONING,BROOMHILL SURGERY,35080382,"1,751.52",LOCSIG,S10 5BU
Department of Health,NHS Sheffield CCG,12/31/2020,C&M-GMS Prem Cost Rent,PRC DELEGATED CO-COMMISSIONING,BROOMHILL SURGERY,35080382,"2,975.42",COST,S10 5BU
Department of Health,NHS Sheffield CCG,12/31/2020,C&M-GMS Prem Notional Rent,PRC DELEGATED CO-COMMISSIONING,BROOMHILL SURGERY,35080382,"2,612.50",NRENT,S10 5BU
Department of Health,NHS Sheffield CCG,12/31/2020,C&M-GMS Prem Rates,PRC DELEGATED CO-COMMISSIONING,BROOMHILL SURGERY,35080382,"9,427.24",RANDR,S10 5BU
Department of Health,NHS Sheffield CCG,12/31/2020,C&M-GMS Prof Fees Prescribing,PRC DELEGATED CO-COMMISSIONING,BROOMHILL SURGERY,35080382,"3,451.03",DRGPPF,S10 5BU
Department of Health,NHS Sheffield CCG,12/31/2020,C&M-GMS QOF Aspiration,PRC DELEGATED CO-COMMISSIONING,BROOMHILL SURGERY,35080382,"6,610.83",QUASPG,S10 5BU
Department of Health,NHS Sheffield CCG,12/31/2020,legal fees,CONTINUING HEALTHCARE ASSESSMENT & SUPPORT,BROWNE JACOBSON LLP,34794813,"30,198.60",https://nww.einvoice-prod.sbs.nhs.uk:8179/invoicepdf/e1637ae1-70f6-573c-9b31-5ba5c3142d0d,NG2 1BJ
Department of Health,NHS Sheffield CCG,12/31/2020,C&M-GMS Cost of Drugs -Prescribing,LOCAL ENHANCED SERVICES,BUCHANAN ROAD SURGERY,35080378,69.84,DRGP,S5 8AL
Department of Health,NHS Sheffield CCG,12/31/2020,C&M-GMS DES Minor Surgery,PRC DELEGATED CO-COMMISSIONING,BUCHANAN ROAD SURGERY,35080378,40.00,DEMSUG,S5 8AL
Department of Health,NHS Sheffield CCG,12/31/2020,C&M-GMS Global Sum,PRC DELEGATED CO-COMMISSIONING,BUCHANAN ROAD SURGERY,35080378,"37,028.88",GSUMG,S5 8AL
Department of Health,NHS Sheffield CCG,12/31/2020,C&M-GMS PCN DES Participation,PRC DELEGATED CO-COMMISSIONING,BUCHANAN ROAD SURGERY,35080378,"1,470.69",PARTIG,S5 8AL
Department of Health,NHS Sheffield CCG,12/31/2020,C&M-GMS PCO Locum Sickness,PRC DELEGATED CO-COMMISSIONING,BUCHANAN ROAD SURGERY,35080378,"14,234.56",LOCSIG,S5 8AL
Department of Health,NHS Sheffield CCG,12/31/2020,C&M-GMS Prem Notional Rent,PRC DELEGATED CO-COMMISSIONING,BUCHANAN ROAD SURGERY,35080378,"2,595.83",NRENT,S5 8AL
Department of Health,NHS Sheffield CCG,12/31/2020,C&M-GMS Prem Rates,PRC DELEGATED CO-COMMISSIONING,BUCHANAN ROAD SURGERY,35080378,"1,283.00",RANDR,S5 8AL
Department of Health,NHS Sheffield CCG,12/31/2020,C&M-GMS Prof Fees Prescribing,PRC DELEGATED CO-COMMISSIONING,BUCHANAN ROAD SURGERY,35080378,26.69,DRGPPF,S5 8AL
Department of Health,NHS Sheffield CCG,12/31/2020,C&M-GMS QOF Aspiration,PRC DELEGATED CO-COMMISSIONING,BUCHANAN ROAD SURGERY,35080378,"4,322.18",QUASPG,S5 8AL
Department of Health,NHS Sheffield CCG,12/31/2020,C&M-PMS GP Statutory Levy,PRC DELEGATED CO-COMMISSIONING,BURNCROSS SURGERY,34893460,-526.09,STATL,S35 1RN
Department of Health,NHS Sheffield CCG,12/31/2020,C&M-PMS PCN DES Participation,PRC DELEGATED CO-COMMISSIONING,BURNCROSS SURGERY,34893460,"-2,282.33",PARTIP,S35 1RN
Department of Health,NHS Sheffield CCG,12/31/2020,C&M-PMS Prem Rates,PRC DELEGATED CO-COMMISSIONING,BURNCROSS SURGERY,34893460,"-4,533.00",RANDRP,S35 1RN
Department of Health,NHS Sheffield CCG,12/31/2020,C&M-PMS Contract Value,PRC DELEGATED CO-COMMISSIONING,BURNCROSS SURGERY,34893461,"123,906.62",BABALP,S35 1RN
Department of Health,NHS Sheffield CCG,12/31/2020,C&M-PMS Funding Differential Review,PRC DELEGATED CO-COMMISSIONING,BURNCROSS SURGERY,34893461,"2,746.32",ZFUNFP,S35 1RN
Department of Health,NHS Sheffield CCG,12/31/2020,C&M-PMS PCN DES Participation,PRC DELEGATED CO-COMMISSIONING,BURNCROSS SURGERY,34893461,"4,568.54",PARTIP,S35 1RN
Department of Health,NHS Sheffield CCG,12/31/2020,C&M-PMS PCO Locum Adop/Pat/Mat,PRC DELEGATED CO-COMMISSIONING,BURNCROSS SURGERY,34893461,"2,286.12",SICKC,S35 1RN
Department of Health,NHS Sheffield CCG,12/31/2020,C&M-PMS Prem Notional Rent,PRC DELEGATED CO-COMMISSIONING,BURNCROSS SURGERY,34893461,"14,919.67",NRENT,S35 1RN
Department of Health,NHS Sheffield CCG,12/31/2020,C&M-PMS Prem Rates,PRC DELEGATED CO-COMMISSIONING,BURNCROSS SURGERY,34893461,"7,993.89",RANDRP,S35 1RN
Department of Health,NHS Sheffield CCG,12/31/2020,C&M-PMS QOF Aspiration,PRC DELEGATED CO-COMMISSIONING,BURNCROSS SURGERY,34893461,"15,253.36",QUASPP,S35 1RN
Department of Health,NHS Sheffield CCG,12/31/2020,C&M-PMS Additional Staff Payments,PRC DELEGATED CO-COMMISSIONING,BURNCROSS SURGERY,34992031,"35,338.00",COVID CAPACITY EXPANSION FUND 202021,S35 1RN
Department of Health,NHS Sheffield CCG,12/31/2020,C&M-PMS Contract Value,PRC DELEGATED CO-COMMISSIONING,BURNGREAVE SURGERY,34893463,"58,797.85",BABALP,S3 9DA
Department of Health,NHS Sheffield CCG,12/31/2020,C&M-PMS DES Learn Dsblty Hlth Chk,PRC DELEGATED CO-COMMISSIONING,BURNGREAVE SURGERY,34893463,980.00,LEARNP,S3 9DA
Department of Health,NHS Sheffield CCG,12/31/2020,C&M-PMS Funding Differential Review,PRC DELEGATED CO-COMMISSIONING,BURNGREAVE SURGERY,34893463,"1,135.51",ZFUNFP,S3 9DA
Department of Health,NHS Sheffield CCG,12/31/2020,C&M-PMS Out of Hours Opt Outs,PRC DELEGATED CO-COMMISSIONING,BURNGREAVE SURGERY,34893463,32.73,APMOOH,S3 9DA
Department of Health,NHS Sheffield CCG,12/31/2020,C&M-PMS PCN DES Participation,PRC DELEGATED CO-COMMISSIONING,BURNGREAVE SURGERY,34893463,"2,182.17",PARTIP,S3 9DA
Department of Health,NHS Sheffield CCG,12/31/2020,C&M-PMS Prem Notional Rent,PRC DELEGATED CO-COMMISSIONING,BURNGREAVE SURGERY,34893463,"6,622.92",NRENT,S3 9DA
Department of Health,NHS Sheffield CCG,12/31/2020,C&M-PMS Prem Rates,PRC DELEGATED CO-COMMISSIONING,BURNGREAVE SURGERY,34893463,"2,297.00",RANDRP,S3 9DA
Department of Health,NHS Sheffield CCG,12/31/2020,C&M-PMS Prem Water Rates,PRC DELEGATED CO-COMMISSIONING,BURNGREAVE SURGERY,34893463,308.22,RAMWP,S3 9DA
Department of Health,NHS Sheffield CCG,12/31/2020,C&M-PMS QOF Aspiration,PRC DELEGATED CO-COMMISSIONING,BURNGREAVE SURGERY,34893463,"5,108.72",QUASPP,S3 9DA
Department of Health,NHS Sheffield CCG,12/31/2020,C&M-GMS Other Addtl Staff Paymts,PRC DELEGATED CO-COMMISSIONING,CARTERKNOWLE & DORE MEDICAL PRACTICE,34992027,"27,036.00",COVID CAPACITY EXPANSION FUND 202021,S7 2DW
Department of Health,NHS Sheffield CCG,12/31/2020,C&M-GMS Cost of Drugs -Prescribing,LOCAL ENHANCED SERVICES,CARTERKNOWLE & DORE MEDICAL PRACTICE,35080388,"22,831.96",DRGP,S7 2DW
Department of Health,NHS Sheffield CCG,12/31/2020,C&M-GMS DES Minor Surgery,PRC DELEGATED CO-COMMISSIONING,CARTERKNOWLE & DORE MEDICAL PRACTICE,35080388,"2,590.00",DEMSUG,S7 2DW
Department of Health,NHS Sheffield CCG,12/31/2020,C&M-GMS Global Sum,PRC DELEGATED CO-COMMISSIONING,CARTERKNOWLE & DORE MEDICAL PRACTICE,35080388,"89,716.31",GSUMG,S7 2DW
Department of Health,NHS Sheffield CCG,12/31/2020,C&M-GMS PCN DES Participation,PRC DELEGATED CO-COMMISSIONING,CARTERKNOWLE & DORE MEDICAL PRACTICE,35080388,"3,484.23",PARTIG,S7 2DW
Department of Health,NHS Sheffield CCG,12/31/2020,C&M-GMS PCO Locum Sickness,PRC DELEGATED CO-COMMISSIONING,CARTERKNOWLE & DORE MEDICAL PRACTICE,35080388,"18,301.92",LOCSIG,S7 2DW
Department of Health,NHS Sheffield CCG,12/31/2020,C&M-GMS Prem Notional Rent,PRC DELEGATED CO-COMMISSIONING,CARTERKNOWLE & DORE MEDICAL PRACTICE,35080388,"7,855.00",NRENT,S7 2DW
Department of Health,NHS Sheffield CCG,12/31/2020,C&M-GMS Prof Fees Prescribing,PRC DELEGATED CO-COMMISSIONING,CARTERKNOWLE & DORE MEDICAL PRACTICE,35080388,"5,658.28",DRGPPF,S7 2DW
Department of Health,NHS Sheffield CCG,12/31/2020,C&M-GMS QOF Aspiration,PRC DELEGATED CO-COMMISSIONING,CARTERKNOWLE & DORE MEDICAL PRACTICE,35080388,"10,268.52",QUASPG,S7 2DW
Department of Health,NHS Sheffield CCG,12/31/2020,C&M-GMS Cost of Drugs -Prescribing,LOCAL ENHANCED SERVICES,CHARNOCK HEALTH PRIMARY CARE CENTRE,35080384,"18,327.26",DRGP,S12 3GH
Department of Health,NHS Sheffield CCG,12/31/2020,C&M-GMS DES Minor Surgery,PRC DELEGATED CO-COMMISSIONING,CHARNOCK HEALTH PRIMARY CARE CENTRE,35080384,325.00,DEMSUG,S12 3GH
Department of Health,NHS Sheffield CCG,12/31/2020,C&M-GMS Global Sum,PRC DELEGATED CO-COMMISSIONING,CHARNOCK HEALTH PRIMARY CARE CENTRE,35080384,"44,918.41",GSUMG,S12 3GH
Department of Health,NHS Sheffield CCG,12/31/2020,C&M-GMS PCN DES Participation,PRC DELEGATED CO-COMMISSIONING,CHARNOCK HEALTH PRIMARY CARE CENTRE,35080384,893.45,PARTIG,S12 3GH
Department of Health,NHS Sheffield CCG,12/31/2020,C&M-GMS PCO Other,PRC DELEGATED CO-COMMISSIONING,CHARNOCK HEALTH PRIMARY CARE CENTRE,35080384,371.00,CQCRG,S12 3GH
Department of Health,NHS Sheffield CCG,12/31/2020,C&M-GMS Prem Actual Rent,PRC DELEGATED CO-COMMISSIONING,CHARNOCK HEALTH PRIMARY CARE CENTRE,35080384,"3,385.48",RENT,S12 3GH
Department of Health,NHS Sheffield CCG,12/31/2020,C&M-GMS Prem Notional Rent,PRC DELEGATED CO-COMMISSIONING,CHARNOCK HEALTH PRIMARY CARE CENTRE,35080384,504.27,NRENT,S12 3GH
Department of Health,NHS Sheffield CCG,12/31/2020,C&M-GMS Prof Fees Prescribing,PRC DELEGATED CO-COMMISSIONING,CHARNOCK HEALTH PRIMARY CARE CENTRE,35080384,"4,149.90",DRGPPF,S12 3GH
Department of Health,NHS Sheffield CCG,12/31/2020,C&M-GMS QOF Aspiration,PRC DELEGATED CO-COMMISSIONING,CHARNOCK HEALTH PRIMARY CARE CENTRE,35080384,"4,918.11",QUASPG,S12 3GH
Department of Health,NHS Sheffield CCG,12/31/2020,Hcare Srv Rec Fdtn Trust-Contract Baseline,ACUTE COMMISSIONING,CHESTERFIELD ROYAL HOSPITAL NHS FOUNDATION TRUST,34937482,"369,177.00",,S44 5BL
Department of Health,NHS Sheffield CCG,12/31/2020,C&M-APMS Contract Value,PRC DELEGATED CO-COMMISSIONING,CLOVER CITY PRACTICE,34893533,"32,052.81",APMADD,S9 4QH
Department of Health,NHS Sheffield CCG,12/31/2020,C&M-APMS OOH Opt Outs,PRC DELEGATED CO-COMMISSIONING,CLOVER CITY PRACTICE,34893533,1.31,APMOOA,S9 4QH
Department of Health,NHS Sheffield CCG,12/31/2020,C&M-APMS PCN DES Participation,PRC DELEGATED CO-COMMISSIONING,CLOVER CITY PRACTICE,34893533,563.87,PARTIA,S9 4QH
Department of Health,NHS Sheffield CCG,12/31/2020,C&M-PMS PCN DES Participation,PRC DELEGATED CO-COMMISSIONING,CLOVER CITY PRACTICE,34893533,564.83,PARTIP,S9 4QH
Department of Health,NHS Sheffield CCG,12/31/2020,C&M-PMS PCO Locum Adop/Pat/Mat,PRC DELEGATED CO-COMMISSIONING,CLOVER CITY PRACTICE,34893533,"7,006.08",SICKC,S9 4QH
Department of Health,NHS Sheffield CCG,12/31/2020,C&M-PMS QOF Aspiration,PRC DELEGATED CO-COMMISSIONING,CLOVER CITY PRACTICE,34893533,"1,589.35",QUASPP,S9 4QH
Department of Health,NHS Sheffield CCG,12/31/2020,C&M-APMS Contract Value,PRC DELEGATED CO-COMMISSIONING,CLOVER GROUP PRACTICE,34893465,"133,739.47",APMADD,S9 4QH
Department of Health,NHS Sheffield CCG,12/31/2020,C&M-APMS PCN DES Participation,PRC DELEGATED CO-COMMISSIONING,CLOVER GROUP PRACTICE,34893465,"2,478.23",PARTIA,S9 4QH
Department of Health,NHS Sheffield CCG,12/31/2020,C&M-APMS Prem Actual Rent,PRC DELEGATED CO-COMMISSIONING,CLOVER GROUP PRACTICE,34893465,"5,169.68",RENTA,S9 4QH
Department of Health,NHS Sheffield CCG,12/31/2020,C&M-APMS Prem Healthcentre Rent,PRC DELEGATED CO-COMMISSIONING,CLOVER GROUP PRACTICE,34893465,"59,788.21",HEALTA,S9 4QH
Department of Health,NHS Sheffield CCG,12/31/2020,C&M-APMS Prem Notional Rent,PRC DELEGATED CO-COMMISSIONING,CLOVER GROUP PRACTICE,34893465,"2,804.17",NRENTA,S9 4QH
Department of Health,NHS Sheffield CCG,12/31/2020,C&M-PMS Out of Hours Opt Outs,PRC DELEGATED CO-COMMISSIONING,CLOVER GROUP PRACTICE,34893465,23.51,APMOOH,S9 4QH
Department of Health,NHS Sheffield CCG,12/31/2020,C&M-PMS PCN DES Participation,PRC DELEGATED CO-COMMISSIONING,CLOVER GROUP PRACTICE,34893465,"2,482.45",PARTIP,S9 4QH
Department of Health,NHS Sheffield CCG,12/31/2020,C&M-PMS QOF Aspiration,PRC DELEGATED CO-COMMISSIONING,CLOVER GROUP PRACTICE,34893465,"11,362.38",QUASPP,S9 4QH
Department of Health,NHS Sheffield CCG,12/31/2020,C&M-APMS Other Addtl Staff Paymts,PRC DELEGATED CO-COMMISSIONING,CLOVER GROUP PRACTICE,34992061,"38,206.00",COVID CAPACITY EXPANSION FUND 202021,S9 4QH
Department of Health,NHS Sheffield CCG,12/31/2020,Computer Software/License,PROCUREMENT,COMMERCE DECISIONS LTD,34027065,"-54,116.69",Reference quote number CDLUKRM546b for 51 Award Licences from Commerce Decisions Ltd. Year 2 of 3,OX14 4RY
Department of Health,NHS Sheffield CCG,12/31/2020,Cont Care-Physical Disab (<65),CHC ADULT FULLY FUNDED,COUNTRY COURT CARE LTD,34880736,"27,494.18",CHC SCHEDULE DECEMBER 2020 - Abbey Grange Nursing Home (Country Court Care),S5 6UU
Department of Health,NHS Sheffield CCG,12/31/2020,Cont Care-Funded Nursing Care Allow,FUNDED NURSING CARE,COUNTRY COURT CARE LTD,34936618,"27,482.86",FNC SCHEDULE DECEMBER 2020 - Abbey Grange Nursing Home (Country Court Care),S5 6UU
Department of Health,NHS Sheffield CCG,12/31/2020,C&M-GMS Cost of Drugs -Prescribing,LOCAL ENHANCED SERVICES,CROOKES PRACTICE,35080392,"6,498.27",DRGP,S10 1GN
Department of Health,NHS Sheffield CCG,12/31/2020,C&M-GMS Global Sum,PRC DELEGATED CO-COMMISSIONING,CROOKES PRACTICE,35080392,"54,947.81",GSUMG,S10 1GN
Department of Health,NHS Sheffield CCG,12/31/2020,C&M-GMS PCN DES Participation,PRC DELEGATED CO-COMMISSIONING,CROOKES PRACTICE,35080392,"2,142.02",PARTIG,S10 1GN
Department of Health,NHS Sheffield CCG,12/31/2020,C&M-GMS PCO Other,PRC DELEGATED CO-COMMISSIONING,CROOKES PRACTICE,35080392,527.70,CQCRG,S10 1GN
Department of Health,NHS Sheffield CCG,12/31/2020,C&M-GMS Prem Notional Rent,PRC DELEGATED CO-COMMISSIONING,CROOKES PRACTICE,35080392,"3,874.67",NRENT,S10 1GN
Department of Health,NHS Sheffield CCG,12/31/2020,C&M-GMS Prem Rates,PRC DELEGATED CO-COMMISSIONING,CROOKES PRACTICE,35080392,"1,534.00",RANDR,S10 1GN
Department of Health,NHS Sheffield CCG,12/31/2020,C&M-GMS Prem Water Rates,PRC DELEGATED CO-COMMISSIONING,CROOKES PRACTICE,35080392,219.94,RAMW,S10 1GN
Department of Health,NHS Sheffield CCG,12/31/2020,C&M-GMS Prof Fees Prescribing,PRC DELEGATED CO-COMMISSIONING,CROOKES PRACTICE,35080392,"1,628.09",DRGPPF,S10 1GN
Department of Health,NHS Sheffield CCG,12/31/2020,C&M-GMS QOF Aspiration,PRC DELEGATED CO-COMMISSIONING,CROOKES PRACTICE,35080392,"4,910.43",QUASPG,S10 1GN
Department of Health,NHS Sheffield CCG,12/31/2020,C&M-PMS Contract Value,PRC DELEGATED CO-COMMISSIONING,DEEPCAR MEDICAL CENTRE,34893467,"43,131.26",BABALP,S36 2RA
Department of Health,NHS Sheffield CCG,12/31/2020,C&M-PMS DES Learn Dsblty Hlth Chk,PRC DELEGATED CO-COMMISSIONING,DEEPCAR MEDICAL CENTRE,34893467,980.00,LEARNP,S36 2RA
Department of Health,NHS Sheffield CCG,12/31/2020,C&M-PMS Funding Differential Review,PRC DELEGATED CO-COMMISSIONING,DEEPCAR MEDICAL CENTRE,34893467,722.88,ZFUNFP,S36 2RA
Department of Health,NHS Sheffield CCG,12/31/2020,C&M-PMS Out of Hours Opt Outs,PRC DELEGATED CO-COMMISSIONING,DEEPCAR MEDICAL CENTRE,34893467,25.16,APMOOH,S36 2RA
Department of Health,NHS Sheffield CCG,12/31/2020,C&M-PMS PCN DES Participation,PRC DELEGATED CO-COMMISSIONING,DEEPCAR MEDICAL CENTRE,34893467,"1,581.53",PARTIP,S36 2RA
Department of Health,NHS Sheffield CCG,12/31/2020,C&M-PMS Prem Healthcentre Rent,PRC DELEGATED CO-COMMISSIONING,DEEPCAR MEDICAL CENTRE,34893467,"30,655.23",HEALTH,S36 2RA
Department of Health,NHS Sheffield CCG,12/31/2020,C&M-PMS QOF Aspiration,PRC DELEGATED CO-COMMISSIONING,DEEPCAR MEDICAL CENTRE,34893467,"4,079.29",QUASPP,S36 2RA
Department of Health,NHS Sheffield CCG,12/31/2020,FM Computer Contracts,PRIMARY CARE IT,DELL CORPORATION LTD,34936172,"29,950.00",Latitude 5310 Quote Reference 105369564,RG12 1LF
Department of Health,NHS Sheffield CCG,12/31/2020,FM Computer Contracts,PRIMARY CARE IT,DELL CORPORATION LTD,34936172,"5,990.00",https://nww.einvoice-prod.sbs.nhs.uk:8179/invoicepdf/bd4a53c1-1100-5749-b009-bc25186bd62c,RG12 1LF
Department of Health,NHS Sheffield CCG,12/31/2020,FM Computer Contracts,PRIMARY CARE IT,DELL CORPORATION LTD,34936173,"29,950.00",Latitude 5310 Quote Reference 105369564,RG12 1LF
Department of Health,NHS Sheffield CCG,12/31/2020,FM Computer Contracts,PRIMARY CARE IT,DELL CORPORATION LTD,34936173,"5,990.00",https://nww.einvoice-prod.sbs.nhs.uk:8179/invoicepdf/f4450128-6a1f-59ca-9b71-97295fbc4bf0,RG12 1LF
Department of Health,NHS Sheffield CCG,12/31/2020,C&M-GMS Cost of Drugs -Prescribing,LOCAL ENHANCED SERVICES,DEVONSHIRE GREEN MEDICAL CENTRE,35080395,"7,011.24",DRGP,S3 7SF
Department of Health,NHS Sheffield CCG,12/31/2020,C&M-GMS DES Minor Surgery,PRC DELEGATED CO-COMMISSIONING,DEVONSHIRE GREEN MEDICAL CENTRE,35080395,210.00,DEMSUG,S3 7SF
Department of Health,NHS Sheffield CCG,12/31/2020,C&M-GMS Global Sum,PRC DELEGATED CO-COMMISSIONING,DEVONSHIRE GREEN MEDICAL CENTRE,35080395,"48,764.06",GSUMG,S3 7SF
Department of Health,NHS Sheffield CCG,12/31/2020,C&M-GMS PCN DES Participation,PRC DELEGATED CO-COMMISSIONING,DEVONSHIRE GREEN MEDICAL CENTRE,35080395,"1,872.01",PARTIG,S3 7SF
Department of Health,NHS Sheffield CCG,12/31/2020,C&M-GMS Prem Notional Rent,PRC DELEGATED CO-COMMISSIONING,DEVONSHIRE GREEN MEDICAL CENTRE,35080395,"5,987.50",NRENT,S3 7SF
Department of Health,NHS Sheffield CCG,12/31/2020,C&M-GMS Prem Rates,PRC DELEGATED CO-COMMISSIONING,DEVONSHIRE GREEN MEDICAL CENTRE,35080395,"1,385.00",RANDR,S3 7SF
Department of Health,NHS Sheffield CCG,12/31/2020,C&M-GMS Prof Fees Prescribing,PRC DELEGATED CO-COMMISSIONING,DEVONSHIRE GREEN MEDICAL CENTRE,35080395,"1,760.91",DRGPPF,S3 7SF
Department of Health,NHS Sheffield CCG,12/31/2020,C&M-GMS QOF Aspiration,PRC DELEGATED CO-COMMISSIONING,DEVONSHIRE GREEN MEDICAL CENTRE,35080395,"4,846.82",QUASPG,S3 7SF
Department of Health,NHS Sheffield CCG,12/31/2020,Hcare Srv Rec Fdtn Trust-Contract Baseline,ACUTE COMMISSIONING,DONCASTER AND BASSETLAW HOSPITALS NHS FOUNDATION TRUST,34937483,"79,729.44",,WF3 1WE
Department of Health,NHS Sheffield CCG,12/31/2020,C&M-PMS Contract Value,PRC DELEGATED CO-COMMISSIONING,DOVERCOURT SURGERY,34893469,"77,872.74",BABALP,S2 5FX
Department of Health,NHS Sheffield CCG,12/31/2020,C&M-PMS DES Learn Dsblty Hlth Chk,PRC DELEGATED CO-COMMISSIONING,DOVERCOURT SURGERY,34893469,420.00,LEARNP,S2 5FX
Department of Health,NHS Sheffield CCG,12/31/2020,C&M-PMS Funding Differential Review,PRC DELEGATED CO-COMMISSIONING,DOVERCOURT SURGERY,34893469,"1,158.87",ZFUNFP,S2 5FX
Department of Health,NHS Sheffield CCG,12/31/2020,C&M-PMS Out of Hours Opt Outs,PRC DELEGATED CO-COMMISSIONING,DOVERCOURT SURGERY,34893469,9.88,APMOOH,S2 5FX
Department of Health,NHS Sheffield CCG,12/31/2020,C&M-PMS PCN DES Participation,PRC DELEGATED CO-COMMISSIONING,DOVERCOURT SURGERY,34893469,"2,813.81",PARTIP,S2 5FX
Department of Health,NHS Sheffield CCG,12/31/2020,C&M-PMS PCO Other,PRC DELEGATED CO-COMMISSIONING,DOVERCOURT SURGERY,34893469,542.80,CQCRP,S2 5FX
Department of Health,NHS Sheffield CCG,12/31/2020,C&M-PMS Prem Actual Rent,PRC DELEGATED CO-COMMISSIONING,DOVERCOURT SURGERY,34893469,"12,400.00",RENT,S2 5FX
Department of Health,NHS Sheffield CCG,12/31/2020,C&M-PMS Prem Notional Rent,PRC DELEGATED CO-COMMISSIONING,DOVERCOURT SURGERY,34893469,"1,708.33",NRENT,S2 5FX
Department of Health,NHS Sheffield CCG,12/31/2020,C&M-PMS QOF Aspiration,PRC DELEGATED CO-COMMISSIONING,DOVERCOURT SURGERY,34893469,"7,547.35",QUASPP,S2 5FX
Department of Health,NHS Sheffield CCG,12/31/2020,C&M-PMS Contract Value,PRC DELEGATED CO-COMMISSIONING,DR MEHROTRA & PARTNER,34893471,"25,077.95",BABALP,S9 5DH
Department of Health,NHS Sheffield CCG,12/31/2020,C&M-PMS Funding Differential Review,PRC DELEGATED CO-COMMISSIONING,DR MEHROTRA & PARTNER,34893471,520.47,ZFUNFP,S9 5DH
Department of Health,NHS Sheffield CCG,12/31/2020,C&M-PMS PCN DES Participation,PRC DELEGATED CO-COMMISSIONING,DR MEHROTRA & PARTNER,34893471,945.10,PARTIP,S9 5DH
Department of Health,NHS Sheffield CCG,12/31/2020,C&M-PMS PCO Other,PRC DELEGATED CO-COMMISSIONING,DR MEHROTRA & PARTNER,34893471,226.20,CQCRP,S9 5DH
Department of Health,NHS Sheffield CCG,12/31/2020,C&M-PMS Prem Notional Rent,PRC DELEGATED CO-COMMISSIONING,DR MEHROTRA & PARTNER,34893471,"5,157.29",NRENT,S9 5DH
Department of Health,NHS Sheffield CCG,12/31/2020,C&M-PMS Prem Rates,PRC DELEGATED CO-COMMISSIONING,DR MEHROTRA & PARTNER,34893471,"1,741.00",RANDRP,S9 5DH
Department of Health,NHS Sheffield CCG,12/31/2020,C&M-PMS QOF Aspiration,PRC DELEGATED CO-COMMISSIONING,DR MEHROTRA & PARTNER,34893471,"2,581.66",QUASPP,S9 5DH
Department of Health,NHS Sheffield CCG,12/31/2020,C&M-PMS Contract Value,PRC DELEGATED CO-COMMISSIONING,DR MILNER & PARTNERS,34893472,-478.05,BABALP,S6 4JQ
Department of Health,NHS Sheffield CCG,12/31/2020,C&M-PMS GP Statutory Levy,PRC DELEGATED CO-COMMISSIONING,DR MILNER & PARTNERS,34893472,-375.73,STATL,S6 4JQ
Department of Health,NHS Sheffield CCG,12/31/2020,C&M-PMS Out of Hours Opt Outs,PRC DELEGATED CO-COMMISSIONING,DR MILNER & PARTNERS,34893472,"-3,715.69",APMOOH,S6 4JQ
Department of Health,NHS Sheffield CCG,12/31/2020,C&M-PMS PCN DES Participation,PRC DELEGATED CO-COMMISSIONING,DR MILNER & PARTNERS,34893472,"-1,452.54",PARTIP,S6 4JQ
Department of Health,NHS Sheffield CCG,12/31/2020,C&M-PMS Contract Value,PRC DELEGATED CO-COMMISSIONING,DR MILNER & PARTNERS,34893473,"77,922.06",BABALP,S6 4JQ
Department of Health,NHS Sheffield CCG,12/31/2020,C&M-PMS Funding Differential Review,PRC DELEGATED CO-COMMISSIONING,DR MILNER & PARTNERS,34893473,"1,377.22",ZFUNFP,S6 4JQ
Department of Health,NHS Sheffield CCG,12/31/2020,C&M-PMS Out of Hours Opt Outs,PRC DELEGATED CO-COMMISSIONING,DR MILNER & PARTNERS,34893473,22.81,APMOOH,S6 4JQ
Department of Health,NHS Sheffield CCG,12/31/2020,C&M-PMS PCN DES Participation,PRC DELEGATED CO-COMMISSIONING,DR MILNER & PARTNERS,34893473,"2,907.56",PARTIP,S6 4JQ
Department of Health,NHS Sheffield CCG,12/31/2020,C&M-PMS Prem Actual Rent,PRC DELEGATED CO-COMMISSIONING,DR MILNER & PARTNERS,34893473,"11,382.00",RENT,S6 4JQ
Department of Health,NHS Sheffield CCG,12/31/2020,C&M-PMS Prem Notional Rent,PRC DELEGATED CO-COMMISSIONING,DR MILNER & PARTNERS,34893473,"4,462.42",NRENT,S6 4JQ
Department of Health,NHS Sheffield CCG,12/31/2020,C&M-PMS Prem Rates,PRC DELEGATED CO-COMMISSIONING,DR MILNER & PARTNERS,34893473,"2,766.00",RANDRP,S6 4JQ
Department of Health,NHS Sheffield CCG,12/31/2020,C&M-PMS QOF Aspiration,PRC DELEGATED CO-COMMISSIONING,DR MILNER & PARTNERS,34893473,"6,594.77",QUASPP,S6 4JQ
Department of Health,NHS Sheffield CCG,12/31/2020,C&M-GMS Cost of Drugs -Prescribing,LOCAL ENHANCED SERVICES,DUKE MEDICAL CENTRE,35080403,"6,042.63",DRGP,S2 2TD
Department of Health,NHS Sheffield CCG,12/31/2020,C&M-GMS DES Minor Surgery,PRC DELEGATED CO-COMMISSIONING,DUKE MEDICAL CENTRE,35080403,360.00,DEMSUG,S2 2TD
Department of Health,NHS Sheffield CCG,12/31/2020,C&M-GMS Global Sum,PRC DELEGATED CO-COMMISSIONING,DUKE MEDICAL CENTRE,35080403,"62,202.34",GSUMG,S2 2TD
Department of Health,NHS Sheffield CCG,12/31/2020,C&M-GMS PCN DES Participation,PRC DELEGATED CO-COMMISSIONING,DUKE MEDICAL CENTRE,35080403,"2,313.14",PARTIG,S2 2TD
Department of Health,NHS Sheffield CCG,12/31/2020,C&M-GMS Prem Notional Rent,PRC DELEGATED CO-COMMISSIONING,DUKE MEDICAL CENTRE,35080403,"5,721.67",NRENT,S2 2TD
Department of Health,NHS Sheffield CCG,12/31/2020,C&M-GMS Prem Water Rates,PRC DELEGATED CO-COMMISSIONING,DUKE MEDICAL CENTRE,35080403,591.52,RAMW,S2 2TD
Department of Health,NHS Sheffield CCG,12/31/2020,C&M-GMS Prof Fees Prescribing,PRC DELEGATED CO-COMMISSIONING,DUKE MEDICAL CENTRE,35080403,"1,302.47",DRGPPF,S2 2TD
Department of Health,NHS Sheffield CCG,12/31/2020,C&M-GMS QOF Aspiration,PRC DELEGATED CO-COMMISSIONING,DUKE MEDICAL CENTRE,35080403,"5,286.81",QUASPG,S2 2TD
Department of Health,NHS Sheffield CCG,12/31/2020,C&M-PMS Contract Value,PRC DELEGATED CO-COMMISSIONING,DUNNINC ROAD SURGERY,34893475,"21,770.95",BABALP,S5 0AE
Department of Health,NHS Sheffield CCG,12/31/2020,C&M-PMS Funding Differential Review,PRC DELEGATED CO-COMMISSIONING,DUNNINC ROAD SURGERY,34893475,506.77,ZFUNFP,S5 0AE
Department of Health,NHS Sheffield CCG,12/31/2020,C&M-PMS PCN DES Participation,PRC DELEGATED CO-COMMISSIONING,DUNNINC ROAD SURGERY,34893475,817.62,PARTIP,S5 0AE
Department of Health,NHS Sheffield CCG,12/31/2020,C&M-PMS Prem Notional Rent,PRC DELEGATED CO-COMMISSIONING,DUNNINC ROAD SURGERY,34893475,"1,695.83",NRENT,S5 0AE
Department of Health,NHS Sheffield CCG,12/31/2020,C&M-PMS QOF Aspiration,PRC DELEGATED CO-COMMISSIONING,DUNNINC ROAD SURGERY,34893475,"1,748.41",QUASPP,S5 0AE
Department of Health,NHS Sheffield CCG,12/31/2020,C&M-PMS Contract Value,PRC DELEGATED CO-COMMISSIONING,DYKES HALL MEDICAL CENTRE,34893476,-564.76,BABALP,S6 4GQ
Department of Health,NHS Sheffield CCG,12/31/2020,C&M-PMS DES Extended Hours Access,PRC DELEGATED CO-COMMISSIONING,DYKES HALL MEDICAL CENTRE,34893476,"-4,338.04",EXTHDP,S6 4GQ
Department of Health,NHS Sheffield CCG,12/31/2020,C&M-PMS GP Statutory Levy,PRC DELEGATED CO-COMMISSIONING,DYKES HALL MEDICAL CENTRE,34893476,-331.24,STATL,S6 4GQ
Department of Health,NHS Sheffield CCG,12/31/2020,C&M-PMS Out of Hours Opt Outs,PRC DELEGATED CO-COMMISSIONING,DYKES HALL MEDICAL CENTRE,34893476,"-3,454.31",APMOOH,S6 4GQ
Department of Health,NHS Sheffield CCG,12/31/2020,C&M-PMS PCN DES Clinical Director,PRC DELEGATED CO-COMMISSIONING,DYKES HALL MEDICAL CENTRE,34893476,"-2,160.04",CLINDP,S6 4GQ
Department of Health,NHS Sheffield CCG,12/31/2020,C&M-PMS PCN DES PCN support,LOCAL ENHANCED SERVICES,DYKES HALL MEDICAL CENTRE,34893476,"-4,487.63",PCNSUP,S6 4GQ
Department of Health,NHS Sheffield CCG,12/31/2020,C&M-PMS PCN DES Participation,PRC DELEGATED CO-COMMISSIONING,DYKES HALL MEDICAL CENTRE,34893476,"-1,355.09",PARTIP,S6 4GQ
Department of Health,NHS Sheffield CCG,12/31/2020,C&M-PMS Contract Value,PRC DELEGATED CO-COMMISSIONING,DYKES HALL MEDICAL CENTRE,34893477,"72,566.58",BABALP,S6 4GQ
Department of Health,NHS Sheffield CCG,12/31/2020,C&M-PMS DES Extended Hours Access,PRC DELEGATED CO-COMMISSIONING,DYKES HALL MEDICAL CENTRE,34893477,"8,682.06",EXTHDP,S6 4GQ
Department of Health,NHS Sheffield CCG,12/31/2020,C&M-PMS DES Learn Dsblty Hlth Chk,PRC DELEGATED CO-COMMISSIONING,DYKES HALL MEDICAL CENTRE,34893477,"1,820.00",LEARNP,S6 4GQ
Department of Health,NHS Sheffield CCG,12/31/2020,C&M-PMS Funding Differential Review,PRC DELEGATED CO-COMMISSIONING,DYKES HALL MEDICAL CENTRE,34893477,"1,473.36",ZFUNFP,S6 4GQ
Department of Health,NHS Sheffield CCG,12/31/2020,C&M-PMS Out of Hours Opt Outs,PRC DELEGATED CO-COMMISSIONING,DYKES HALL MEDICAL CENTRE,34893477,26.43,APMOOH,S6 4GQ
Department of Health,NHS Sheffield CCG,12/31/2020,C&M-PMS PCN DES Clinical Director,PRC DELEGATED CO-COMMISSIONING,DYKES HALL MEDICAL CENTRE,34893477,"4,314.10",CLINDP,S6 4GQ
Department of Health,NHS Sheffield CCG,12/31/2020,C&M-PMS PCN DES PCN support,LOCAL ENHANCED SERVICES,DYKES HALL MEDICAL CENTRE,34893477,"8,975.25",PCNSUP,S6 4GQ
Department of Health,NHS Sheffield CCG,12/31/2020,C&M-PMS PCN DES Participation,PRC DELEGATED CO-COMMISSIONING,DYKES HALL MEDICAL CENTRE,34893477,"2,712.49",PARTIP,S6 4GQ
Department of Health,NHS Sheffield CCG,12/31/2020,C&M-PMS Prem Notional Rent,PRC DELEGATED CO-COMMISSIONING,DYKES HALL MEDICAL CENTRE,34893477,"5,893.05",NRENT,S6 4GQ
Department of Health,NHS Sheffield CCG,12/31/2020,C&M-PMS QOF Aspiration,PRC DELEGATED CO-COMMISSIONING,DYKES HALL MEDICAL CENTRE,34893477,"8,087.38",QUASPP,S6 4GQ
Department of Health,NHS Sheffield CCG,12/31/2020,C&M-PMS Contract Value,PRC DELEGATED CO-COMMISSIONING,EAST BANK MEDICAL CENTRE,34893479,"50,841.88",BABALP,S2 2AG
Department of Health,NHS Sheffield CCG,12/31/2020,C&M-PMS Funding Differential Review,PRC DELEGATED CO-COMMISSIONING,EAST BANK MEDICAL CENTRE,34893479,771.92,ZFUNFP,S2 2AG
Department of Health,NHS Sheffield CCG,12/31/2020,C&M-PMS PCN DES Participation,PRC DELEGATED CO-COMMISSIONING,EAST BANK MEDICAL CENTRE,34893479,"1,875.96",PARTIP,S2 2AG
Department of Health,NHS Sheffield CCG,12/31/2020,C&M-PMS Prem Notional Rent,PRC DELEGATED CO-COMMISSIONING,EAST BANK MEDICAL CENTRE,34893479,"10,583.33",NRENT,S2 2AG
Department of Health,NHS Sheffield CCG,12/31/2020,C&M-PMS Prem Rates,PRC DELEGATED CO-COMMISSIONING,EAST BANK MEDICAL CENTRE,34893479,"2,944.00",RANDRP,S2 2AG
Department of Health,NHS Sheffield CCG,12/31/2020,C&M-PMS Prem Water Rates,PRC DELEGATED CO-COMMISSIONING,EAST BANK MEDICAL CENTRE,34893479,759.71,RAMWP,S2 2AG
Department of Health,NHS Sheffield CCG,12/31/2020,C&M-PMS QOF Aspiration,PRC DELEGATED CO-COMMISSIONING,EAST BANK MEDICAL CENTRE,34893479,"5,136.41",QUASPP,S2 2AG
Department of Health,NHS Sheffield CCG,12/31/2020,C&M-GMS Cost of Drugs -Prescribing,LOCAL ENHANCED SERVICES,ECCLESFIELD GROUP PRACTICE,35080399,"23,250.33",DRGP,S35 9XQ
Department of Health,NHS Sheffield CCG,12/31/2020,C&M-GMS DES Extended Hours Access,PRC DELEGATED CO-COMMISSIONING,ECCLESFIELD GROUP PRACTICE,35080399,"7,723.39",EXTHDG,S35 9XQ
Department of Health,NHS Sheffield CCG,12/31/2020,C&M-GMS DES Minor Surgery,PRC DELEGATED CO-COMMISSIONING,ECCLESFIELD GROUP PRACTICE,35080399,200.00,DEMSUG,S35 9XQ
Department of Health,NHS Sheffield CCG,12/31/2020,C&M-GMS Global Sum,PRC DELEGATED CO-COMMISSIONING,ECCLESFIELD GROUP PRACTICE,35080399,"73,576.35",GSUMG,S35 9XQ
Department of Health,NHS Sheffield CCG,12/31/2020,C&M-GMS PCN DES Clinical Director,PRC DELEGATED CO-COMMISSIONING,ECCLESFIELD GROUP PRACTICE,35080399,"2,569.72",CLINDG,S35 9XQ
Department of Health,NHS Sheffield CCG,12/31/2020,C&M-GMS PCN DES PCN support,LOCAL ENHANCED SERVICES,ECCLESFIELD GROUP PRACTICE,35080399,"15,845.41",PCNSUG,S35 9XQ
Department of Health,NHS Sheffield CCG,12/31/2020,C&M-GMS PCN DES Participation,PRC DELEGATED CO-COMMISSIONING,ECCLESFIELD GROUP PRACTICE,35080399,"2,879.35",PARTIG,S35 9XQ
Department of Health,NHS Sheffield CCG,12/31/2020,C&M-GMS PCO Locum Sickness,PRC DELEGATED CO-COMMISSIONING,ECCLESFIELD GROUP PRACTICE,35080399,"8,421.22",LOCSIG,S35 9XQ
Department of Health,NHS Sheffield CCG,12/31/2020,C&M-GMS Prem Notional Rent,PRC DELEGATED CO-COMMISSIONING,ECCLESFIELD GROUP PRACTICE,35080399,"6,805.42",NRENT,S35 9XQ
Department of Health,NHS Sheffield CCG,12/31/2020,C&M-GMS Prem Rates,PRC DELEGATED CO-COMMISSIONING,ECCLESFIELD GROUP PRACTICE,35080399,551.00,RANDR,S35 9XQ
Department of Health,NHS Sheffield CCG,12/31/2020,C&M-GMS Prof Fees Prescribing,PRC DELEGATED CO-COMMISSIONING,ECCLESFIELD GROUP PRACTICE,35080399,"5,490.13",DRGPPF,S35 9XQ
Department of Health,NHS Sheffield CCG,12/31/2020,C&M-GMS QOF Aspiration,PRC DELEGATED CO-COMMISSIONING,ECCLESFIELD GROUP PRACTICE,35080399,"9,221.39",QUASPG,S35 9XQ
Department of Health,NHS Sheffield CCG,12/31/2020,C&M-APMS Other Delivery,GP FORWARD VIEW,ECCLESFIELD GROUP PRACTICE,35082100,"26,812.50",PCN DEVELOPMENT 2021,S35 9XQ
Department of Health,NHS Sheffield CCG,12/31/2020,C&M-GMS Cost of Drugs -Prescribing,LOCAL ENHANCED SERVICES,ELM LANE SURGERY,35080401,"8,198.46",DRGP,S5 7TW
Department of Health,NHS Sheffield CCG,12/31/2020,C&M-GMS DES Learn Dsblty Hlth Chk,PRC DELEGATED CO-COMMISSIONING,ELM LANE SURGERY,35080401,700.00,LEARNG,S5 7TW
Department of Health,NHS Sheffield CCG,12/31/2020,C&M-GMS DES Minor Surgery,PRC DELEGATED CO-COMMISSIONING,ELM LANE SURGERY,35080401,40.00,DEMSUG,S5 7TW
Department of Health,NHS Sheffield CCG,12/31/2020,C&M-GMS Global Sum,PRC DELEGATED CO-COMMISSIONING,ELM LANE SURGERY,35080401,"43,452.53",GSUMG,S5 7TW
Department of Health,NHS Sheffield CCG,12/31/2020,C&M-GMS PCN DES Participation,PRC DELEGATED CO-COMMISSIONING,ELM LANE SURGERY,35080401,"1,703.93",PARTIG,S5 7TW
Department of Health,NHS Sheffield CCG,12/31/2020,C&M-GMS Prem Notional Rent,PRC DELEGATED CO-COMMISSIONING,ELM LANE SURGERY,35080401,"5,343.00",NRENT,S5 7TW
Department of Health,NHS Sheffield CCG,12/31/2020,C&M-GMS Prem Rates,PRC DELEGATED CO-COMMISSIONING,ELM LANE SURGERY,35080401,"1,527.00",RANDR,S5 7TW
Department of Health,NHS Sheffield CCG,12/31/2020,C&M-GMS Prof Fees Prescribing,PRC DELEGATED CO-COMMISSIONING,ELM LANE SURGERY,35080401,"1,943.09",DRGPPF,S5 7TW
Department of Health,NHS Sheffield CCG,12/31/2020,C&M-GMS QOF Aspiration,PRC DELEGATED CO-COMMISSIONING,ELM LANE SURGERY,35080401,"4,787.76",QUASPG,S5 7TW
Department of Health,NHS Sheffield CCG,12/31/2020,Cont Care-Physical Disab (<65),CHC ADULT FULLY FUNDED,FAIRWINDS HEALTH CARE LTD,34880743,"40,513.49",CHC SCHEDULE DECEMBER 2020 - Fairwinds Nursing Home,S61 1AJ
Department of Health,NHS Sheffield CCG,12/31/2020,C&M-PMS Contract Value,PRC DELEGATED CO-COMMISSIONING,FALKLAND HOUSE,34893483,"27,493.24",BABALP,S11 7PL
Department of Health,NHS Sheffield CCG,12/31/2020,C&M-PMS Funding Differential Review,PRC DELEGATED CO-COMMISSIONING,FALKLAND HOUSE,34893483,358.89,ZFUNFP,S11 7PL
Department of Health,NHS Sheffield CCG,12/31/2020,C&M-PMS Out of Hours Opt Outs,PRC DELEGATED CO-COMMISSIONING,FALKLAND HOUSE,34893483,8.04,APMOOH,S11 7PL
Department of Health,NHS Sheffield CCG,12/31/2020,C&M-PMS PCN DES Participation,PRC DELEGATED CO-COMMISSIONING,FALKLAND HOUSE,34893483,994.89,PARTIP,S11 7PL
Department of Health,NHS Sheffield CCG,12/31/2020,C&M-PMS PCO Other,PRC DELEGATED CO-COMMISSIONING,FALKLAND HOUSE,34893483,276.50,CQCRP,S11 7PL
Department of Health,NHS Sheffield CCG,12/31/2020,C&M-PMS Prem Notional Rent,PRC DELEGATED CO-COMMISSIONING,FALKLAND HOUSE,34893483,"1,866.67",NRENT,S11 7PL
Department of Health,NHS Sheffield CCG,12/31/2020,C&M-PMS Prem Rates,PRC DELEGATED CO-COMMISSIONING,FALKLAND HOUSE,34893483,786.00,RANDRP,S11 7PL
Department of Health,NHS Sheffield CCG,12/31/2020,C&M-PMS QOF Aspiration,PRC DELEGATED CO-COMMISSIONING,FALKLAND HOUSE,34893483,"2,962.47",QUASPP,S11 7PL
Department of Health,NHS Sheffield CCG,12/31/2020,C&M-GMS Cost of Drugs -Prescribing,LOCAL ENHANCED SERVICES,FAR LANE MEDICAL CENTRE,35080410,483.29,DRGP,S6 4FA
Department of Health,NHS Sheffield CCG,12/31/2020,C&M-GMS DES Minor Surgery,PRC DELEGATED CO-COMMISSIONING,FAR LANE MEDICAL CENTRE,35080410,"1,980.00",DEMSUG,S6 4FA
Department of Health,NHS Sheffield CCG,12/31/2020,C&M-GMS Global Sum,PRC DELEGATED CO-COMMISSIONING,FAR LANE MEDICAL CENTRE,35080410,"57,915.48",GSUMG,S6 4FA
Department of Health,NHS Sheffield CCG,12/31/2020,C&M-GMS PCN DES Participation,PRC DELEGATED CO-COMMISSIONING,FAR LANE MEDICAL CENTRE,35080410,"2,277.76",PARTIG,S6 4FA
Department of Health,NHS Sheffield CCG,12/31/2020,C&M-GMS PCO Other,PRC DELEGATED CO-COMMISSIONING,FAR LANE MEDICAL CENTRE,35080410,460.10,CQCRG,S6 4FA
Department of Health,NHS Sheffield CCG,12/31/2020,C&M-GMS Prem Notional Rent,PRC DELEGATED CO-COMMISSIONING,FAR LANE MEDICAL CENTRE,35080410,"3,504.17",NRENT,S6 4FA
Department of Health,NHS Sheffield CCG,12/31/2020,C&M-GMS Prem Rates,PRC DELEGATED CO-COMMISSIONING,FAR LANE MEDICAL CENTRE,35080410,"1,277.00",RANDR,S6 4FA
Department of Health,NHS Sheffield CCG,12/31/2020,C&M-GMS Prof Fees Prescribing,PRC DELEGATED CO-COMMISSIONING,FAR LANE MEDICAL CENTRE,35080410,117.44,DRGPPF,S6 4FA
Department of Health,NHS Sheffield CCG,12/31/2020,C&M-GMS QOF Aspiration,PRC DELEGATED CO-COMMISSIONING,FAR LANE MEDICAL CENTRE,35080410,"6,055.38",QUASPG,S6 4FA
Department of Health,NHS Sheffield CCG,12/31/2020,C&M-PMS Contract Value,PRC DELEGATED CO-COMMISSIONING,FIRTH PARK SURGERY,34893481,"78,980.06",BABALP,S5 6HH
Department of Health,NHS Sheffield CCG,12/31/2020,C&M-PMS DES Learn Dsblty Hlth Chk,PRC DELEGATED CO-COMMISSIONING,FIRTH PARK SURGERY,34893481,"1,260.00",LEARNP,S5 6HH
Department of Health,NHS Sheffield CCG,12/31/2020,C&M-PMS Out of Hours Opt Outs,PRC DELEGATED CO-COMMISSIONING,FIRTH PARK SURGERY,34893481,7.50,APMOOH,S5 6HH
Department of Health,NHS Sheffield CCG,12/31/2020,C&M-PMS PCN DES Participation,PRC DELEGATED CO-COMMISSIONING,FIRTH PARK SURGERY,34893481,"2,909.44",PARTIP,S5 6HH
Department of Health,NHS Sheffield CCG,12/31/2020,C&M-PMS PCO Locum Adop/Pat/Mat,PRC DELEGATED CO-COMMISSIONING,FIRTH PARK SURGERY,34893481,"1,020.00",SICKC,S5 6HH
Department of Health,NHS Sheffield CCG,12/31/2020,C&M-PMS Prem Notional Rent,PRC DELEGATED CO-COMMISSIONING,FIRTH PARK SURGERY,34893481,"4,500.00",NRENT,S5 6HH
Department of Health,NHS Sheffield CCG,12/31/2020,C&M-PMS Prem Rates,PRC DELEGATED CO-COMMISSIONING,FIRTH PARK SURGERY,34893481,"1,844.00",RANDRP,S5 6HH
Department of Health,NHS Sheffield CCG,12/31/2020,C&M-PMS Prem Water Rates,PRC DELEGATED CO-COMMISSIONING,FIRTH PARK SURGERY,34893481,200.10,RAMWP,S5 6HH
Department of Health,NHS Sheffield CCG,12/31/2020,C&M-PMS QOF Aspiration,PRC DELEGATED CO-COMMISSIONING,FIRTH PARK SURGERY,34893481,"7,425.15",QUASPP,S5 6HH
Department of Health,NHS Sheffield CCG,12/31/2020,C&M-PMS Contract Value,PRC DELEGATED CO-COMMISSIONING,FORGE HEALTH GROUP,34893530,-784.29,BABALP,S3 9DL
Department of Health,NHS Sheffield CCG,12/31/2020,C&M-PMS DES Extended Hours Access,PRC DELEGATED CO-COMMISSIONING,FORGE HEALTH GROUP,34893530,"-6,849.44",EXTHDP,S3 9DL
Department of Health,NHS Sheffield CCG,12/31/2020,C&M-PMS GP Statutory Levy,PRC DELEGATED CO-COMMISSIONING,FORGE HEALTH GROUP,34893530,-516.43,STATL,S3 9DL
Department of Health,NHS Sheffield CCG,12/31/2020,C&M-PMS Out of Hours Opt Outs,PRC DELEGATED CO-COMMISSIONING,FORGE HEALTH GROUP,34893530,"-5,951.83",APMOOH,S3 9DL
Department of Health,NHS Sheffield CCG,12/31/2020,C&M-PMS PCN DES Clinical Director,PRC DELEGATED CO-COMMISSIONING,FORGE HEALTH GROUP,34893530,"-3,410.55",CLINDP,S3 9DL
Department of Health,NHS Sheffield CCG,12/31/2020,C&M-PMS PCN DES PCN support,LOCAL ENHANCED SERVICES,FORGE HEALTH GROUP,34893530,"-7,085.63",PCNSUP,S3 9DL
Department of Health,NHS Sheffield CCG,12/31/2020,C&M-PMS PCN DES Participation,PRC DELEGATED CO-COMMISSIONING,FORGE HEALTH GROUP,34893530,"-2,286.18",PARTIP,S3 9DL
Department of Health,NHS Sheffield CCG,12/31/2020,C&M-PMS Prem Healthcentre Rent,PRC DELEGATED CO-COMMISSIONING,FORGE HEALTH GROUP,34893530,-927.37,HEALTH,S3 9DL
Department of Health,NHS Sheffield CCG,12/31/2020,C&M-PMS Prem Notional Rent,PRC DELEGATED CO-COMMISSIONING,FORGE HEALTH GROUP,34893530,"-1,589.77",NRENT,S3 9DL
Department of Health,NHS Sheffield CCG,12/31/2020,C&M-PMS Contract Value,PRC DELEGATED CO-COMMISSIONING,FORGE HEALTH GROUP,34893531,"125,186.83",BABALP,S3 9DL
Department of Health,NHS Sheffield CCG,12/31/2020,C&M-PMS DES Extended Hours Access,PRC DELEGATED CO-COMMISSIONING,FORGE HEALTH GROUP,34893531,"13,708.32",EXTHDP,S3 9DL
Department of Health,NHS Sheffield CCG,12/31/2020,C&M-PMS Funding Differential Review,PRC DELEGATED CO-COMMISSIONING,FORGE HEALTH GROUP,34893531,"1,206.61",ZFUNFP,S3 9DL
Department of Health,NHS Sheffield CCG,12/31/2020,C&M-PMS Out of Hours Opt Outs,PRC DELEGATED CO-COMMISSIONING,FORGE HEALTH GROUP,34893531,37.43,APMOOH,S3 9DL
Department of Health,NHS Sheffield CCG,12/31/2020,C&M-PMS PCN DES Clinical Director,PRC DELEGATED CO-COMMISSIONING,FORGE HEALTH GROUP,34893531,"6,811.65",CLINDP,S3 9DL
Department of Health,NHS Sheffield CCG,12/31/2020,C&M-PMS PCN DES PCN support,LOCAL ENHANCED SERVICES,FORGE HEALTH GROUP,34893531,"14,171.25",PCNSUP,S3 9DL
Department of Health,NHS Sheffield CCG,12/31/2020,C&M-PMS PCN DES Participation,PRC DELEGATED CO-COMMISSIONING,FORGE HEALTH GROUP,34893531,"4,576.26",PARTIP,S3 9DL
Department of Health,NHS Sheffield CCG,12/31/2020,C&M-PMS Prem Healthcentre Rent,PRC DELEGATED CO-COMMISSIONING,FORGE HEALTH GROUP,34893531,"35,472.33",HEALTH,S3 9DL
Department of Health,NHS Sheffield CCG,12/31/2020,C&M-PMS Prem Notional Rent,PRC DELEGATED CO-COMMISSIONING,FORGE HEALTH GROUP,34893531,"11,481.43",NRENT,S3 9DL
Department of Health,NHS Sheffield CCG,12/31/2020,C&M-PMS Prem Rates,PRC DELEGATED CO-COMMISSIONING,FORGE HEALTH GROUP,34893531,"2,370.00",RANDRP,S3 9DL
Department of Health,NHS Sheffield CCG,12/31/2020,C&M-PMS QOF Aspiration,PRC DELEGATED CO-COMMISSIONING,FORGE HEALTH GROUP,34893531,"11,197.01",QUASPP,S3 9DL
Department of Health,NHS Sheffield CCG,12/31/2020,C&M-PMS Additional Staff Payments,PRC DELEGATED CO-COMMISSIONING,FORGE HEALTH GROUP,34992251,"35,391.00",COVID CAPACITY EXPANSION FUND 202021,S3 9DL
Department of Health,NHS Sheffield CCG,12/31/2020,C&M-PMS Contract Value,PRC DELEGATED CO-COMMISSIONING,FOXHILL MEDICAL CENTRE SHEFFIELD,34893529,"53,006.06",BABALP,S6 1GA
Department of Health,NHS Sheffield CCG,12/31/2020,C&M-PMS Funding Differential Review,PRC DELEGATED CO-COMMISSIONING,FOXHILL MEDICAL CENTRE SHEFFIELD,34893529,"1,157.94",ZFUNFP,S6 1GA
Department of Health,NHS Sheffield CCG,12/31/2020,C&M-PMS Out of Hours Opt Outs,PRC DELEGATED CO-COMMISSIONING,FOXHILL MEDICAL CENTRE SHEFFIELD,34893529,20.41,APMOOH,S6 1GA
Department of Health,NHS Sheffield CCG,12/31/2020,C&M-PMS PCN DES Participation,PRC DELEGATED CO-COMMISSIONING,FOXHILL MEDICAL CENTRE SHEFFIELD,34893529,"1,963.57",PARTIP,S6 1GA
Department of Health,NHS Sheffield CCG,12/31/2020,C&M-PMS PCO Locum Sickness,PRC DELEGATED CO-COMMISSIONING,FOXHILL MEDICAL CENTRE SHEFFIELD,34893529,"7,006.08",SICKS,S6 1GA
Department of Health,NHS Sheffield CCG,12/31/2020,C&M-PMS PCO Other,PRC DELEGATED CO-COMMISSIONING,FOXHILL MEDICAL CENTRE SHEFFIELD,34893529,400.50,CQCRP,S6 1GA
Department of Health,NHS Sheffield CCG,12/31/2020,C&M-PMS Prem Healthcentre Rent,PRC DELEGATED CO-COMMISSIONING,FOXHILL MEDICAL CENTRE SHEFFIELD,34893529,"47,880.58",HEALTH,S6 1GA
Department of Health,NHS Sheffield CCG,12/31/2020,C&M-PMS QOF Aspiration,PRC DELEGATED CO-COMMISSIONING,FOXHILL MEDICAL CENTRE SHEFFIELD,34893529,"5,429.40",QUASPP,S6 1GA
Department of Health,NHS Sheffield CCG,12/31/2020,C&M-PMS Contract Value,PRC DELEGATED CO-COMMISSIONING,GLEADLESS MEDICAL CENTRE,34893485,"70,830.12",BABALP,S14 1PQ
Department of Health,NHS Sheffield CCG,12/31/2020,C&M-PMS Funding Differential Review,PRC DELEGATED CO-COMMISSIONING,GLEADLESS MEDICAL CENTRE,34893485,"1,547.97",ZFUNFP,S14 1PQ
Department of Health,NHS Sheffield CCG,12/31/2020,C&M-PMS Out of Hours Opt Outs,PRC DELEGATED CO-COMMISSIONING,GLEADLESS MEDICAL CENTRE,34893485,33.34,APMOOH,S14 1PQ
Department of Health,NHS Sheffield CCG,12/31/2020,C&M-PMS PCN DES Participation,PRC DELEGATED CO-COMMISSIONING,GLEADLESS MEDICAL CENTRE,34893485,"2,632.76",PARTIP,S14 1PQ
Department of Health,NHS Sheffield CCG,12/31/2020,C&M-PMS PCO Other,PRC DELEGATED CO-COMMISSIONING,GLEADLESS MEDICAL CENTRE,34893485,559.20,CQCRP,S14 1PQ
Department of Health,NHS Sheffield CCG,12/31/2020,C&M-PMS Prem Notional Rent,PRC DELEGATED CO-COMMISSIONING,GLEADLESS MEDICAL CENTRE,34893485,"6,750.00",NRENT,S14 1PQ
Department of Health,NHS Sheffield CCG,12/31/2020,C&M-PMS Prem Rates,PRC DELEGATED CO-COMMISSIONING,GLEADLESS MEDICAL CENTRE,34893485,"1,684.00",RANDRP,S14 1PQ
Department of Health,NHS Sheffield CCG,12/31/2020,C&M-PMS Prem Water Rates,PRC DELEGATED CO-COMMISSIONING,GLEADLESS MEDICAL CENTRE,34893485,118.40,RAMWP,S14 1PQ
Department of Health,NHS Sheffield CCG,12/31/2020,C&M-PMS QOF Aspiration,PRC DELEGATED CO-COMMISSIONING,GLEADLESS MEDICAL CENTRE,34893485,"7,390.52",QUASPP,S14 1PQ
Department of Health,NHS Sheffield CCG,12/31/2020,C&M-GMS Cost of Drugs -Prescribing,LOCAL ENHANCED SERVICES,GRENOSIDE SURGERY,35080418,"8,519.16",DRGP,S35 8NX
Department of Health,NHS Sheffield CCG,12/31/2020,C&M-GMS DES Minor Surgery,PRC DELEGATED CO-COMMISSIONING,GRENOSIDE SURGERY,35080418,80.00,DEMSUG,S35 8NX
Department of Health,NHS Sheffield CCG,12/31/2020,C&M-GMS Global Sum,PRC DELEGATED CO-COMMISSIONING,GRENOSIDE SURGERY,35080418,"63,156.45",GSUMG,S35 8NX
Department of Health,NHS Sheffield CCG,12/31/2020,C&M-GMS PCN DES Participation,PRC DELEGATED CO-COMMISSIONING,GRENOSIDE SURGERY,35080418,"2,442.24",PARTIG,S35 8NX
Department of Health,NHS Sheffield CCG,12/31/2020,C&M-GMS Prem Notional Rent,PRC DELEGATED CO-COMMISSIONING,GRENOSIDE SURGERY,35080418,"8,110.42",NRENT,S35 8NX
Department of Health,NHS Sheffield CCG,12/31/2020,C&M-GMS Prem Rates,PRC DELEGATED CO-COMMISSIONING,GRENOSIDE SURGERY,35080418,"2,109.00",RANDR,S35 8NX
Department of Health,NHS Sheffield CCG,12/31/2020,C&M-GMS Prof Fees Prescribing,PRC DELEGATED CO-COMMISSIONING,GRENOSIDE SURGERY,35080418,"2,068.46",DRGPPF,S35 8NX
Department of Health,NHS Sheffield CCG,12/31/2020,C&M-GMS QOF Aspiration,PRC DELEGATED CO-COMMISSIONING,GRENOSIDE SURGERY,35080418,"5,840.97",QUASPG,S35 8NX
Department of Health,NHS Sheffield CCG,12/31/2020,C&M-GMS Cost of Drugs -Prescribing,LOCAL ENHANCED SERVICES,GREYSTONES MEDICAL CENTRE,35080420,"4,705.76",DRGP,S11 7BJ
Department of Health,NHS Sheffield CCG,12/31/2020,C&M-GMS DES Minor Surgery,PRC DELEGATED CO-COMMISSIONING,GREYSTONES MEDICAL CENTRE,35080420,80.00,DEMSUG,S11 7BJ
Department of Health,NHS Sheffield CCG,12/31/2020,C&M-GMS Global Sum,PRC DELEGATED CO-COMMISSIONING,GREYSTONES MEDICAL CENTRE,35080420,"20,579.57",GSUMG,S11 7BJ
Department of Health,NHS Sheffield CCG,12/31/2020,C&M-GMS PCN DES Participation,PRC DELEGATED CO-COMMISSIONING,GREYSTONES MEDICAL CENTRE,35080420,814.36,PARTIG,S11 7BJ
Department of Health,NHS Sheffield CCG,12/31/2020,C&M-GMS PCO Other,PRC DELEGATED CO-COMMISSIONING,GREYSTONES MEDICAL CENTRE,35080420,264.20,CQCRG,S11 7BJ
Department of Health,NHS Sheffield CCG,12/31/2020,C&M-GMS Prem Notional Rent,PRC DELEGATED CO-COMMISSIONING,GREYSTONES MEDICAL CENTRE,35080420,"2,885.42",NRENT,S11 7BJ
Department of Health,NHS Sheffield CCG,12/31/2020,C&M-GMS Prem Rates,PRC DELEGATED CO-COMMISSIONING,GREYSTONES MEDICAL CENTRE,35080420,707.00,RANDR,S11 7BJ
Department of Health,NHS Sheffield CCG,12/31/2020,C&M-GMS Prem Water Rates,PRC DELEGATED CO-COMMISSIONING,GREYSTONES MEDICAL CENTRE,35080420,63.34,RAMW,S11 7BJ
Department of Health,NHS Sheffield CCG,12/31/2020,C&M-GMS Prof Fees Prescribing,PRC DELEGATED CO-COMMISSIONING,GREYSTONES MEDICAL CENTRE,35080420,"1,134.33",DRGPPF,S11 7BJ
Department of Health,NHS Sheffield CCG,12/31/2020,C&M-GMS QOF Aspiration,PRC DELEGATED CO-COMMISSIONING,GREYSTONES MEDICAL CENTRE,35080420,"2,326.23",QUASPG,S11 7BJ
Department of Health,NHS Sheffield CCG,12/31/2020,C&M-PMS Contract Value,PRC DELEGATED CO-COMMISSIONING,HACKENTHORPE MEDICAL CENTRE,34893487,"50,821.96",BABALP,S12 4LA
Department of Health,NHS Sheffield CCG,12/31/2020,C&M-PMS Funding Differential Review,PRC DELEGATED CO-COMMISSIONING,HACKENTHORPE MEDICAL CENTRE,34893487,881.57,ZFUNFP,S12 4LA
Department of Health,NHS Sheffield CCG,12/31/2020,C&M-PMS Out of Hours Opt Outs,PRC DELEGATED CO-COMMISSIONING,HACKENTHORPE MEDICAL CENTRE,34893487,12.63,APMOOH,S12 4LA
Department of Health,NHS Sheffield CCG,12/31/2020,C&M-PMS PCN DES Participation,PRC DELEGATED CO-COMMISSIONING,HACKENTHORPE MEDICAL CENTRE,34893487,"1,853.42",PARTIP,S12 4LA
Department of Health,NHS Sheffield CCG,12/31/2020,C&M-PMS PCO Other,PRC DELEGATED CO-COMMISSIONING,HACKENTHORPE MEDICAL CENTRE,34893487,435.70,CQCRP,S12 4LA
Department of Health,NHS Sheffield CCG,12/31/2020,C&M-PMS Prem Notional Rent,PRC DELEGATED CO-COMMISSIONING,HACKENTHORPE MEDICAL CENTRE,34893487,"5,116.67",NRENT,S12 4LA
Department of Health,NHS Sheffield CCG,12/31/2020,C&M-PMS Prem Rates,PRC DELEGATED CO-COMMISSIONING,HACKENTHORPE MEDICAL CENTRE,34893487,"1,385.00",RANDRP,S12 4LA
Department of Health,NHS Sheffield CCG,12/31/2020,C&M-PMS Prem Water Rates,PRC DELEGATED CO-COMMISSIONING,HACKENTHORPE MEDICAL CENTRE,34893487,80.85,RAMWP,S12 4LA
Department of Health,NHS Sheffield CCG,12/31/2020,C&M-PMS QOF Aspiration,PRC DELEGATED CO-COMMISSIONING,HACKENTHORPE MEDICAL CENTRE,34893487,"6,490.74",QUASPP,S12 4LA
Department of Health,NHS Sheffield CCG,12/31/2020,C&M-GMS Cost of Drugs -Prescribing,LOCAL ENHANCED SERVICES,HANDSWORTH MEDICAL PRACTICE SHEFFIELD,35080416,"10,035.70",DRGP,S13 9BZ
Department of Health,NHS Sheffield CCG,12/31/2020,C&M-GMS DES Minor Surgery,PRC DELEGATED CO-COMMISSIONING,HANDSWORTH MEDICAL PRACTICE SHEFFIELD,35080416,280.00,DEMSUG,S13 9BZ
Department of Health,NHS Sheffield CCG,12/31/2020,C&M-GMS Global Sum,PRC DELEGATED CO-COMMISSIONING,HANDSWORTH MEDICAL PRACTICE SHEFFIELD,35080416,"82,492.51",GSUMG,S13 9BZ
Department of Health,NHS Sheffield CCG,12/31/2020,C&M-GMS PCN DES Participation,PRC DELEGATED CO-COMMISSIONING,HANDSWORTH MEDICAL PRACTICE SHEFFIELD,35080416,"3,202.29",PARTIG,S13 9BZ
Department of Health,NHS Sheffield CCG,12/31/2020,C&M-GMS Prem Notional Rent,PRC DELEGATED CO-COMMISSIONING,HANDSWORTH MEDICAL PRACTICE SHEFFIELD,35080416,"3,321.66",NRENT,S13 9BZ
Department of Health,NHS Sheffield CCG,12/31/2020,C&M-GMS Prem Rates,PRC DELEGATED CO-COMMISSIONING,HANDSWORTH MEDICAL PRACTICE SHEFFIELD,35080416,"1,299.80",RANDR,S13 9BZ
Department of Health,NHS Sheffield CCG,12/31/2020,C&M-GMS Prem Water Rates,PRC DELEGATED CO-COMMISSIONING,HANDSWORTH MEDICAL PRACTICE SHEFFIELD,35080416,58.25,RAMW,S13 9BZ
Department of Health,NHS Sheffield CCG,12/31/2020,C&M-GMS Prof Fees Prescribing,PRC DELEGATED CO-COMMISSIONING,HANDSWORTH MEDICAL PRACTICE SHEFFIELD,35080416,"2,411.15",DRGPPF,S13 9BZ
Department of Health,NHS Sheffield CCG,12/31/2020,C&M-GMS QOF Aspiration,PRC DELEGATED CO-COMMISSIONING,HANDSWORTH MEDICAL PRACTICE SHEFFIELD,35080416,"7,866.23",QUASPG,S13 9BZ
Department of Health,NHS Sheffield CCG,12/31/2020,C&M-GMS Global Sum,PRC DELEGATED CO-COMMISSIONING,HAROLD STREET MEDICAL CENTRE,35080413,"19,929.61",GSUMG,S6 3QW
Department of Health,NHS Sheffield CCG,12/31/2020,C&M-GMS PCN DES Participation,PRC DELEGATED CO-COMMISSIONING,HAROLD STREET MEDICAL CENTRE,35080413,810.91,PARTIG,S6 3QW
Department of Health,NHS Sheffield CCG,12/31/2020,C&M-GMS PCO Other,PRC DELEGATED CO-COMMISSIONING,HAROLD STREET MEDICAL CENTRE,35080413,218.90,CQCRG,S6 3QW
Department of Health,NHS Sheffield CCG,12/31/2020,C&M-GMS Prem Notional Rent,PRC DELEGATED CO-COMMISSIONING,HAROLD STREET MEDICAL CENTRE,35080413,"2,337.50",NRENT,S6 3QW
Department of Health,NHS Sheffield CCG,12/31/2020,C&M-GMS QOF Aspiration,PRC DELEGATED CO-COMMISSIONING,HAROLD STREET MEDICAL CENTRE,35080413,"2,231.83",QUASPG,S6 3QW
Department of Health,NHS Sheffield CCG,12/31/2020,C&M-GMS Cost of Drugs -Prescribing,LOCAL ENHANCED SERVICES,HEALTH CARE SURGERY,35080426,"9,075.56",DRGP,S5 8GS
Department of Health,NHS Sheffield CCG,12/31/2020,C&M-GMS DES Minor Surgery,PRC DELEGATED CO-COMMISSIONING,HEALTH CARE SURGERY,35080426,40.00,DEMSUG,S5 8GS
Department of Health,NHS Sheffield CCG,12/31/2020,C&M-GMS Global Sum,PRC DELEGATED CO-COMMISSIONING,HEALTH CARE SURGERY,35080426,"40,736.35",GSUMG,S5 8GS
Department of Health,NHS Sheffield CCG,12/31/2020,C&M-GMS PCN DES Participation,PRC DELEGATED CO-COMMISSIONING,HEALTH CARE SURGERY,35080426,"1,606.00",PARTIG,S5 8GS
Department of Health,NHS Sheffield CCG,12/31/2020,C&M-GMS PCO Other,PRC DELEGATED CO-COMMISSIONING,HEALTH CARE SURGERY,35080426,337.00,CQCRG,S5 8GS
Department of Health,NHS Sheffield CCG,12/31/2020,C&M-GMS Prem Notional Rent,PRC DELEGATED CO-COMMISSIONING,HEALTH CARE SURGERY,35080426,"3,862.50",NRENT,S5 8GS
Department of Health,NHS Sheffield CCG,12/31/2020,C&M-GMS Prem Rates,PRC DELEGATED CO-COMMISSIONING,HEALTH CARE SURGERY,35080426,755.00,RANDR,S5 8GS
Department of Health,NHS Sheffield CCG,12/31/2020,C&M-GMS Prof Fees Prescribing,PRC DELEGATED CO-COMMISSIONING,HEALTH CARE SURGERY,35080426,"2,249.96",DRGPPF,S5 8GS
Department of Health,NHS Sheffield CCG,12/31/2020,C&M-GMS QOF Aspiration,PRC DELEGATED CO-COMMISSIONING,HEALTH CARE SURGERY,35080426,"4,354.34",QUASPG,S5 8GS
Department of Health,NHS Sheffield CCG,12/31/2020,C&M-GMS Cost of Drugs -Prescribing,LOCAL ENHANCED SERVICES,HEELEY GREEN SURGERY,35080422,"5,169.55",DRGP,S2 3AJ
Department of Health,NHS Sheffield CCG,12/31/2020,C&M-GMS Global Sum,PRC DELEGATED CO-COMMISSIONING,HEELEY GREEN SURGERY,35080422,"43,048.97",GSUMG,S2 3AJ
Department of Health,NHS Sheffield CCG,12/31/2020,C&M-GMS PCN DES Participation,PRC DELEGATED CO-COMMISSIONING,HEELEY GREEN SURGERY,35080422,"1,716.38",PARTIG,S2 3AJ
Department of Health,NHS Sheffield CCG,12/31/2020,C&M-GMS Prem Notional Rent,PRC DELEGATED CO-COMMISSIONING,HEELEY GREEN SURGERY,35080422,"3,254.17",NRENT,S2 3AJ
Department of Health,NHS Sheffield CCG,12/31/2020,C&M-GMS Prof Fees Prescribing,PRC DELEGATED CO-COMMISSIONING,HEELEY GREEN SURGERY,35080422,"1,096.96",DRGPPF,S2 3AJ
Department of Health,NHS Sheffield CCG,12/31/2020,C&M-GMS QOF Aspiration,PRC DELEGATED CO-COMMISSIONING,HEELEY GREEN SURGERY,35080422,"4,729.13",QUASPG,S2 3AJ
Department of Health,NHS Sheffield CCG,12/31/2020,C&M-GMS Cost of Drugs -Prescribing,LOCAL ENHANCED SERVICES,HOLLIES MEDICAL CENTRE,35080424,"21,007.30",DRGP,S11 9AL
Department of Health,NHS Sheffield CCG,12/31/2020,C&M-GMS DES Learn Dsblty Hlth Chk,PRC DELEGATED CO-COMMISSIONING,HOLLIES MEDICAL CENTRE,35080424,140.00,LEARNG,S11 9AL
Department of Health,NHS Sheffield CCG,12/31/2020,C&M-GMS DES Minor Surgery,PRC DELEGATED CO-COMMISSIONING,HOLLIES MEDICAL CENTRE,35080424,465.00,DEMSUG,S11 9AL
Department of Health,NHS Sheffield CCG,12/31/2020,C&M-GMS Global Sum,PRC DELEGATED CO-COMMISSIONING,HOLLIES MEDICAL CENTRE,35080424,"64,793.36",GSUMG,S11 9AL
Department of Health,NHS Sheffield CCG,12/31/2020,C&M-GMS PCN DES Participation,PRC DELEGATED CO-COMMISSIONING,HOLLIES MEDICAL CENTRE,35080424,"2,495.24",PARTIG,S11 9AL
Department of Health,NHS Sheffield CCG,12/31/2020,C&M-GMS PCO Other,PRC DELEGATED CO-COMMISSIONING,HOLLIES MEDICAL CENTRE,35080424,608.70,CQCRG,S11 9AL
Department of Health,NHS Sheffield CCG,12/31/2020,C&M-GMS Prem Notional Rent,PRC DELEGATED CO-COMMISSIONING,HOLLIES MEDICAL CENTRE,35080424,"3,229.17",NRENT,S11 9AL
Department of Health,NHS Sheffield CCG,12/31/2020,C&M-GMS Prem Rates,PRC DELEGATED CO-COMMISSIONING,HOLLIES MEDICAL CENTRE,35080424,"1,818.00",RANDR,S11 9AL
Department of Health,NHS Sheffield CCG,12/31/2020,C&M-GMS Prof Fees Prescribing,PRC DELEGATED CO-COMMISSIONING,HOLLIES MEDICAL CENTRE,35080424,"4,986.77",DRGPPF,S11 9AL
Department of Health,NHS Sheffield CCG,12/31/2020,C&M-GMS QOF Aspiration,PRC DELEGATED CO-COMMISSIONING,HOLLIES MEDICAL CENTRE,35080424,"7,315.52",QUASPG,S11 9AL
Department of Health,NHS Sheffield CCG,12/31/2020,Cont Care-Physical Disab (<65),CHC ADULT FULLY FUNDED,HORIZON CARE HOMES LTD,34880762,"36,728.61",CHC SCHEDULE DECEMBER 2020 - Wood Hill Grange (Horizon Care Homes),S25 3QA
Department of Health,NHS Sheffield CCG,12/31/2020,Cont Care-Physical Disab (<65),CHC ADULT FULLY FUNDED,HORIZON CARE HOMES LTD,34880774,"43,474.64",CHC SCHEDULE DECEMBER 2020 - Wood Hill House,S25 3QA
Department of Health,NHS Sheffield CCG,12/31/2020,Cont Care-Physical Disab (<65),CHC ADULT FULLY FUNDED,HORIZON CARE HOMES LTD,34880776,"87,247.11",CHC SCHEDULE DECEMBER 2020 - Wood Hill Lodge,S25 3QA
Department of Health,NHS Sheffield CCG,12/31/2020,Clinical&Medical-Serv Recd-F Trsts,ACUTE COMMISSIONING,HUMBER TEACHING NHS FOUNDATION TRUST,34937492,"50,667.00",,WF3 1WE
Department of Health,NHS Sheffield CCG,12/31/2020,Cont Care-Physical Disab (<65),CHC ADULT FULLY FUNDED,INLET LTD,34880779,"62,690.76",CHC SCHEDULE DECEMBER 2020 - Loxley Court (Inlet Ltd),S48NB
Department of Health,NHS Sheffield CCG,12/31/2020,C&M-PMS Contract Value,PRC DELEGATED CO-COMMISSIONING,JAUNTY SPRINGS HEALTH CENTRE,34893489,"32,205.35",BABALP,S12 3DZ
Department of Health,NHS Sheffield CCG,12/31/2020,C&M-PMS DES Extended Hours Access,PRC DELEGATED CO-COMMISSIONING,JAUNTY SPRINGS HEALTH CENTRE,34893489,"8,433.94",EXTHDP,S12 3DZ
Department of Health,NHS Sheffield CCG,12/31/2020,C&M-PMS Funding Differential Review,PRC DELEGATED CO-COMMISSIONING,JAUNTY SPRINGS HEALTH CENTRE,34893489,600.45,ZFUNFP,S12 3DZ
Department of Health,NHS Sheffield CCG,12/31/2020,C&M-PMS Out of Hours Opt Outs,PRC DELEGATED CO-COMMISSIONING,JAUNTY SPRINGS HEALTH CENTRE,34893489,12.20,APMOOH,S12 3DZ
Department of Health,NHS Sheffield CCG,12/31/2020,C&M-PMS PCN DES Clinical Director,PRC DELEGATED CO-COMMISSIONING,JAUNTY SPRINGS HEALTH CENTRE,34893489,"4,190.81",CLINDP,S12 3DZ
Department of Health,NHS Sheffield CCG,12/31/2020,C&M-PMS PCN DES PCN support,LOCAL ENHANCED SERVICES,JAUNTY SPRINGS HEALTH CENTRE,34893489,"8,718.76",PCNSUP,S12 3DZ
Department of Health,NHS Sheffield CCG,12/31/2020,C&M-PMS PCN DES Participation,PRC DELEGATED CO-COMMISSIONING,JAUNTY SPRINGS HEALTH CENTRE,34893489,592.79,PARTIP,S12 3DZ
Department of Health,NHS Sheffield CCG,12/31/2020,C&M-PMS PCO Other,PRC DELEGATED CO-COMMISSIONING,JAUNTY SPRINGS HEALTH CENTRE,34893489,266.60,CQCRP,S12 3DZ
Department of Health,NHS Sheffield CCG,12/31/2020,C&M-PMS Prem Notional Rent,PRC DELEGATED CO-COMMISSIONING,JAUNTY SPRINGS HEALTH CENTRE,34893489,"3,208.33",NRENT,S12 3DZ
Department of Health,NHS Sheffield CCG,12/31/2020,C&M-PMS Prem Rates,PRC DELEGATED CO-COMMISSIONING,JAUNTY SPRINGS HEALTH CENTRE,34893489,830.00,RANDRP,S12 3DZ
Department of Health,NHS Sheffield CCG,12/31/2020,C&M-PMS QOF Aspiration,PRC DELEGATED CO-COMMISSIONING,JAUNTY SPRINGS HEALTH CENTRE,34893489,"3,693.16",QUASPP,S12 3DZ
Department of Health,NHS Sheffield CCG,12/31/2020,Hcare Srv Rec NHS Trust-Contract Baseline,ACUTE COMMISSIONING,LEEDS TEACHING HOSPITALS NHS TRUST,34937484,"47,860.51",,LS9 7TF
Department of Health,NHS Sheffield CCG,12/31/2020,Cont Care-Physical Disab (<65),CHC ADULT FULLY FUNDED,LONGLEY HEALTH CARE LTD,34880747,"98,176.32",CHC SCHEDULE DECEMBER 2020 - Longley Park View Nursing Home (Exemplar HC),S5 7JZ
Department of Health,NHS Sheffield CCG,12/31/2020,C&M-PMS Contract Value,PRC DELEGATED CO-COMMISSIONING,MANCHESTER ROAD SURGERY SHEFFIELD,34893493,"34,658.36",BABALP,S10 5PN
Department of Health,NHS Sheffield CCG,12/31/2020,C&M-PMS Funding Differential Review,PRC DELEGATED CO-COMMISSIONING,MANCHESTER ROAD SURGERY SHEFFIELD,34893493,604.16,ZFUNFP,S10 5PN
Department of Health,NHS Sheffield CCG,12/31/2020,C&M-PMS Out of Hours Opt Outs,PRC DELEGATED CO-COMMISSIONING,MANCHESTER ROAD SURGERY SHEFFIELD,34893493,4.42,APMOOH,S10 5PN
Department of Health,NHS Sheffield CCG,12/31/2020,C&M-PMS PCN DES Participation,PRC DELEGATED CO-COMMISSIONING,MANCHESTER ROAD SURGERY SHEFFIELD,34893493,"1,263.76",PARTIP,S10 5PN
Department of Health,NHS Sheffield CCG,12/31/2020,C&M-PMS Prem Cost Rent,PRC DELEGATED CO-COMMISSIONING,MANCHESTER ROAD SURGERY SHEFFIELD,34893493,"3,091.46",COST,S10 5PN
Department of Health,NHS Sheffield CCG,12/31/2020,C&M-PMS Prem Notional Rent,PRC DELEGATED CO-COMMISSIONING,MANCHESTER ROAD SURGERY SHEFFIELD,34893493,442.92,NRENT,S10 5PN
Department of Health,NHS Sheffield CCG,12/31/2020,C&M-PMS Prem Rates,PRC DELEGATED CO-COMMISSIONING,MANCHESTER ROAD SURGERY SHEFFIELD,34893493,986.00,RANDRP,S10 5PN
Department of Health,NHS Sheffield CCG,12/31/2020,C&M-PMS Prem Water Rates,PRC DELEGATED CO-COMMISSIONING,MANCHESTER ROAD SURGERY SHEFFIELD,34893493,72.59,RAMWP,S10 5PN
Department of Health,NHS Sheffield CCG,12/31/2020,C&M-PMS QOF Aspiration,PRC DELEGATED CO-COMMISSIONING,MANCHESTER ROAD SURGERY SHEFFIELD,34893493,"3,837.07",QUASPP,S10 5PN
Department of Health,NHS Sheffield CCG,12/31/2020,C&M-PMS Contract Value,PRC DELEGATED CO-COMMISSIONING,MANOR & PARK GROUP PRACTICE,34894461,"73,769.32",BABALP,S2 5QQ
Department of Health,NHS Sheffield CCG,12/31/2020,C&M-PMS Out of Hours Opt Outs,PRC DELEGATED CO-COMMISSIONING,MANOR & PARK GROUP PRACTICE,34894461,99.71,APMOOH,S2 5QQ
Department of Health,NHS Sheffield CCG,12/31/2020,C&M-PMS PCN DES Participation,PRC DELEGATED CO-COMMISSIONING,MANOR & PARK GROUP PRACTICE,34894461,"2,777.35",PARTIP,S2 5QQ
Department of Health,NHS Sheffield CCG,12/31/2020,C&M-PMS Prem Notional Rent,PRC DELEGATED CO-COMMISSIONING,MANOR & PARK GROUP PRACTICE,34894461,"9,050.00",NRENT,S2 5QQ
Department of Health,NHS Sheffield CCG,12/31/2020,C&M-PMS Prem Rates,PRC DELEGATED CO-COMMISSIONING,MANOR & PARK GROUP PRACTICE,34894461,"1,864.00",RANDRP,S2 5QQ
Department of Health,NHS Sheffield CCG,12/31/2020,C&M-PMS QOF Aspiration,PRC DELEGATED CO-COMMISSIONING,MANOR & PARK GROUP PRACTICE,34894461,"6,093.98",QUASPP,S2 5QQ
Department of Health,NHS Sheffield CCG,12/31/2020,C&M-GMS Cost of Drugs -Prescribing,LOCAL ENHANCED SERVICES,MATHEWS PRACTICE,35080434,63.56,DRGP,S2 4UJ
Department of Health,NHS Sheffield CCG,12/31/2020,C&M-GMS DES Minor Surgery,PRC DELEGATED CO-COMMISSIONING,MATHEWS PRACTICE,35080434,360.00,DEMSUG,S2 4UJ
Department of Health,NHS Sheffield CCG,12/31/2020,C&M-GMS Global Sum,PRC DELEGATED CO-COMMISSIONING,MATHEWS PRACTICE,35080434,"59,073.17",GSUMG,S2 4UJ
Department of Health,NHS Sheffield CCG,12/31/2020,C&M-GMS PCN DES Participation,PRC DELEGATED CO-COMMISSIONING,MATHEWS PRACTICE,35080434,"1,189.39",PARTIG,S2 4UJ
Department of Health,NHS Sheffield CCG,12/31/2020,C&M-GMS Prem Rates,PRC DELEGATED CO-COMMISSIONING,MATHEWS PRACTICE,35080434,"2,183.00",RANDR,S2 4UJ
Department of Health,NHS Sheffield CCG,12/31/2020,C&M-GMS Prof Fees Prescribing,PRC DELEGATED CO-COMMISSIONING,MATHEWS PRACTICE,35080434,77.40,DRGPPF,S2 4UJ
Department of Health,NHS Sheffield CCG,12/31/2020,C&M-GMS QOF Aspiration,PRC DELEGATED CO-COMMISSIONING,MATHEWS PRACTICE,35080434,"7,173.28",QUASPG,S2 4UJ
Department of Health,NHS Sheffield CCG,12/31/2020,C&M-PMS Contract Value,PRC DELEGATED CO-COMMISSIONING,MEADOWHEAD GROUP PRACTICE,34893490,"-167,772.60",BABALP,S8 7RL
Department of Health,NHS Sheffield CCG,12/31/2020,C&M-PMS GP Statutory Levy,PRC DELEGATED CO-COMMISSIONING,MEADOWHEAD GROUP PRACTICE,34893490,-571.31,STATL,S8 7RL
Department of Health,NHS Sheffield CCG,12/31/2020,C&M-PMS Out of Hours Opt Outs,PRC DELEGATED CO-COMMISSIONING,MEADOWHEAD GROUP PRACTICE,34893490,"-14,370.51",APMOOH,S8 7RL
Department of Health,NHS Sheffield CCG,12/31/2020,C&M-PMS PCN DES Participation,PRC DELEGATED CO-COMMISSIONING,MEADOWHEAD GROUP PRACTICE,34893490,"-2,434.20",PARTIP,S8 7RL
Department of Health,NHS Sheffield CCG,12/31/2020,C&M-PMS Prem Cost Rent,PRC DELEGATED CO-COMMISSIONING,MEADOWHEAD GROUP PRACTICE,34893490,"-5,965.80",COST,S8 7RL
Department of Health,NHS Sheffield CCG,12/31/2020,C&M-PMS Prem Notional Rent,PRC DELEGATED CO-COMMISSIONING,MEADOWHEAD GROUP PRACTICE,34893490,"-5,492.92",NRENT,S8 7RL
Department of Health,NHS Sheffield CCG,12/31/2020,C&M-PMS Contract Value,PRC DELEGATED CO-COMMISSIONING,MEADOWHEAD GROUP PRACTICE,34893491,"301,475.36",BABALP,S8 7RL
Department of Health,NHS Sheffield CCG,12/31/2020,C&M-PMS Funding Differential Review,PRC DELEGATED CO-COMMISSIONING,MEADOWHEAD GROUP PRACTICE,34893491,"2,003.74",ZFUNFP,S8 7RL
Department of Health,NHS Sheffield CCG,12/31/2020,C&M-PMS Out of Hours Opt Outs,PRC DELEGATED CO-COMMISSIONING,MEADOWHEAD GROUP PRACTICE,34893491,"8,005.98",APMOOH,S8 7RL
Department of Health,NHS Sheffield CCG,12/31/2020,C&M-PMS PCN DES Participation,PRC DELEGATED CO-COMMISSIONING,MEADOWHEAD GROUP PRACTICE,34893491,"3,821.10",PARTIP,S8 7RL
Department of Health,NHS Sheffield CCG,12/31/2020,C&M-PMS PCO Other,PRC DELEGATED CO-COMMISSIONING,MEADOWHEAD GROUP PRACTICE,34893491,456.10,CQCRP,S8 7RL
Department of Health,NHS Sheffield CCG,12/31/2020,C&M-PMS Prem Cost Rent,PRC DELEGATED CO-COMMISSIONING,MEADOWHEAD GROUP PRACTICE,34893491,"3,647.42",COST,S8 7RL
Department of Health,NHS Sheffield CCG,12/31/2020,C&M-PMS Prem Healthcentre Rent,PRC DELEGATED CO-COMMISSIONING,MEADOWHEAD GROUP PRACTICE,34893491,"41,665.03",HEALTH,S8 7RL
Department of Health,NHS Sheffield CCG,12/31/2020,C&M-PMS Prem Notional Rent,PRC DELEGATED CO-COMMISSIONING,MEADOWHEAD GROUP PRACTICE,34893491,"8,905.00",NRENT,S8 7RL
Department of Health,NHS Sheffield CCG,12/31/2020,C&M-PMS Prem Rates,PRC DELEGATED CO-COMMISSIONING,MEADOWHEAD GROUP PRACTICE,34893491,"1,968.00",RANDRP,S8 7RL
Department of Health,NHS Sheffield CCG,12/31/2020,C&M-PMS Prem Water Rates,PRC DELEGATED CO-COMMISSIONING,MEADOWHEAD GROUP PRACTICE,34893491,52.74,RAMWP,S8 7RL
Department of Health,NHS Sheffield CCG,12/31/2020,C&M-PMS QOF Aspiration,PRC DELEGATED CO-COMMISSIONING,MEADOWHEAD GROUP PRACTICE,34893491,"8,381.02",QUASPP,S8 7RL
Department of Health,NHS Sheffield CCG,12/31/2020,C&M-GMS Other Addtl Staff Paymts,PRC DELEGATED CO-COMMISSIONING,MEADOWHEAD GROUP PRACTICE,34992201,"37,726.00",COVID CAPACITY EXPANSION FUND 202021,S8 7RL
Department of Health,NHS Sheffield CCG,12/31/2020,C&M-GMS Cost of Drugs -Prescribing,LOCAL ENHANCED SERVICES,MEDICAL CENTRE CRYSTAL PEAKS,35080430,"7,713.90",DRGP,S20 7HZ
Department of Health,NHS Sheffield CCG,12/31/2020,C&M-GMS DES Minor Surgery,PRC DELEGATED CO-COMMISSIONING,MEDICAL CENTRE CRYSTAL PEAKS,35080430,"2,385.00",DEMSUG,S20 7HZ
Department of Health,NHS Sheffield CCG,12/31/2020,C&M-GMS Global Sum,PRC DELEGATED CO-COMMISSIONING,MEDICAL CENTRE CRYSTAL PEAKS,35080430,"49,706.72",GSUMG,S20 7HZ
Department of Health,NHS Sheffield CCG,12/31/2020,C&M-GMS PCN DES Participation,PRC DELEGATED CO-COMMISSIONING,MEDICAL CENTRE CRYSTAL PEAKS,35080430,"1,948.24",PARTIG,S20 7HZ
Department of Health,NHS Sheffield CCG,12/31/2020,C&M-GMS PCO Locum Sickness,PRC DELEGATED CO-COMMISSIONING,MEDICAL CENTRE CRYSTAL PEAKS,35080430,"10,360.73",LOCSIG,S20 7HZ
Department of Health,NHS Sheffield CCG,12/31/2020,C&M-GMS PCO Other,PRC DELEGATED CO-COMMISSIONING,MEDICAL CENTRE CRYSTAL PEAKS,35080430,431.60,CQCRG,S20 7HZ
Department of Health,NHS Sheffield CCG,12/31/2020,C&M-GMS Prem Notional Rent,PRC DELEGATED CO-COMMISSIONING,MEDICAL CENTRE CRYSTAL PEAKS,35080430,270.00,NRENT,S20 7HZ
Department of Health,NHS Sheffield CCG,12/31/2020,C&M-GMS Prem Rates,PRC DELEGATED CO-COMMISSIONING,MEDICAL CENTRE CRYSTAL PEAKS,35080430,"1,073.00",RANDR,S20 7HZ
Department of Health,NHS Sheffield CCG,12/31/2020,C&M-GMS Prof Fees Prescribing,PRC DELEGATED CO-COMMISSIONING,MEDICAL CENTRE CRYSTAL PEAKS,35080430,"2,044.00",DRGPPF,S20 7HZ
Department of Health,NHS Sheffield CCG,12/31/2020,C&M-GMS QOF Aspiration,PRC DELEGATED CO-COMMISSIONING,MEDICAL CENTRE CRYSTAL PEAKS,35080430,"6,365.03",QUASPG,S20 7HZ
Department of Health,NHS Sheffield CCG,12/31/2020,C&M-GMS Cost of Drugs -Prescribing,LOCAL ENHANCED SERVICES,MILL ROAD SURGERY SHEFFIELD,35080437,"4,290.31",DRGP,S35 9XQ
Department of Health,NHS Sheffield CCG,12/31/2020,C&M-GMS DES Minor Surgery,PRC DELEGATED CO-COMMISSIONING,MILL ROAD SURGERY SHEFFIELD,35080437,600.00,DEMSUG,S35 9XQ
Department of Health,NHS Sheffield CCG,12/31/2020,C&M-GMS Global Sum,PRC DELEGATED CO-COMMISSIONING,MILL ROAD SURGERY SHEFFIELD,35080437,"42,313.48",GSUMG,S35 9XQ
Department of Health,NHS Sheffield CCG,12/31/2020,C&M-GMS PCN DES Participation,PRC DELEGATED CO-COMMISSIONING,MILL ROAD SURGERY SHEFFIELD,35080437,"1,669.50",PARTIG,S35 9XQ
Department of Health,NHS Sheffield CCG,12/31/2020,C&M-GMS PCO Other,PRC DELEGATED CO-COMMISSIONING,MILL ROAD SURGERY SHEFFIELD,35080437,352.00,CQCRG,S35 9XQ
Department of Health,NHS Sheffield CCG,12/31/2020,C&M-GMS Prem Notional Rent,PRC DELEGATED CO-COMMISSIONING,MILL ROAD SURGERY SHEFFIELD,35080437,"4,593.33",NRENT,S35 9XQ
Department of Health,NHS Sheffield CCG,12/31/2020,C&M-GMS Prem Rates,PRC DELEGATED CO-COMMISSIONING,MILL ROAD SURGERY SHEFFIELD,35080437,"1,073.00",RANDR,S35 9XQ
Department of Health,NHS Sheffield CCG,12/31/2020,C&M-GMS Prof Fees Prescribing,PRC DELEGATED CO-COMMISSIONING,MILL ROAD SURGERY SHEFFIELD,35080437,"1,000.87",DRGPPF,S35 9XQ
Department of Health,NHS Sheffield CCG,12/31/2020,C&M-GMS QOF Aspiration,PRC DELEGATED CO-COMMISSIONING,MILL ROAD SURGERY SHEFFIELD,35080437,"5,109.19",QUASPG,S35 9XQ
Department of Health,NHS Sheffield CCG,12/31/2020,Clinical&Medical-Independent Sector,Mental Health Services - S117 Mental Health,MOORVILLE RESIDENTIAL,34989081,"29,616.47",,S10 5FA
Department of Health,NHS Sheffield CCG,12/31/2020,Cont Care-Learning Disab(<65),CHC ADULT FULLY FUNDED,MOORVILLE RESIDENTIAL,34989081,"9,423.38",https://nww.einvoice-prod.sbs.nhs.uk:8179/invoicepdf/e796a976-ac42-5cf6-b97b-80a4074d3c94,S10 5FA
Department of Health,NHS Sheffield CCG,12/31/2020,Cont Care-Learning Disab(<65),CHC ADULT JOINT FUNDED,MOORVILLE RESIDENTIAL,34989081,"4,333.18",,S10 5FA
Department of Health,NHS Sheffield CCG,12/31/2020,Cont Care-Mental Health (<65),CHC ADULT JOINT FUNDED,MOORVILLE RESIDENTIAL,34989081,506.23,,S10 5FA
Department of Health,NHS Sheffield CCG,12/31/2020,C&M-PMS Contract Value,PRC DELEGATED CO-COMMISSIONING,MOSBOROUGH HEALTH CENTRE,34893495,"52,094.13",BABALP,S20 5BQ
Department of Health,NHS Sheffield CCG,12/31/2020,C&M-PMS Funding Differential Review,PRC DELEGATED CO-COMMISSIONING,MOSBOROUGH HEALTH CENTRE,34893495,891.89,ZFUNFP,S20 5BQ
Department of Health,NHS Sheffield CCG,12/31/2020,C&M-PMS PCN DES Participation,PRC DELEGATED CO-COMMISSIONING,MOSBOROUGH HEALTH CENTRE,34893495,"1,911.97",PARTIP,S20 5BQ
Department of Health,NHS Sheffield CCG,12/31/2020,C&M-PMS Prem Notional Rent,PRC DELEGATED CO-COMMISSIONING,MOSBOROUGH HEALTH CENTRE,34893495,"4,091.67",NRENT,S20 5BQ
Department of Health,NHS Sheffield CCG,12/31/2020,C&M-PMS Prem Rates,PRC DELEGATED CO-COMMISSIONING,MOSBOROUGH HEALTH CENTRE,34893495,"1,604.00",RANDRP,S20 5BQ
Department of Health,NHS Sheffield CCG,12/31/2020,C&M-PMS QOF Aspiration,PRC DELEGATED CO-COMMISSIONING,MOSBOROUGH HEALTH CENTRE,34893495,"5,629.90",QUASPP,S20 5BQ
Department of Health,NHS Sheffield CCG,12/31/2020,C&M-PMS Contract Value,PRC DELEGATED CO-COMMISSIONING,NETHERGREEN SURGERY,34893497,"66,060.89",BABALP,S11 7EJ
Department of Health,NHS Sheffield CCG,12/31/2020,C&M-PMS Funding Differential Review,PRC DELEGATED CO-COMMISSIONING,NETHERGREEN SURGERY,34893497,"1,369.87",ZFUNFP,S11 7EJ
Department of Health,NHS Sheffield CCG,12/31/2020,C&M-PMS Out of Hours Opt Outs,PRC DELEGATED CO-COMMISSIONING,NETHERGREEN SURGERY,34893497,2.61,APMOOH,S11 7EJ
Department of Health,NHS Sheffield CCG,12/31/2020,C&M-PMS PCN DES Participation,PRC DELEGATED CO-COMMISSIONING,NETHERGREEN SURGERY,34893497,"2,404.52",PARTIP,S11 7EJ
Department of Health,NHS Sheffield CCG,12/31/2020,C&M-PMS Prem Cost Rent,PRC DELEGATED CO-COMMISSIONING,NETHERGREEN SURGERY,34893497,"5,057.33",COST,S11 7EJ
Department of Health,NHS Sheffield CCG,12/31/2020,C&M-PMS Prem Rates,PRC DELEGATED CO-COMMISSIONING,NETHERGREEN SURGERY,34893497,"1,285.00",RANDRP,S11 7EJ
Department of Health,NHS Sheffield CCG,12/31/2020,C&M-PMS QOF Aspiration,PRC DELEGATED CO-COMMISSIONING,NETHERGREEN SURGERY,34893497,"5,887.42",QUASPP,S11 7EJ
Department of Health,NHS Sheffield CCG,12/31/2020,Seconded-Basic Sal-Staff fm oth org,CLINICAL LEADS,NHS BARNSLEY CCG,34861923,"35,575.86",BASIC SAL-RECHGS TO-FROM OTHER NHS,WF3 1WE
Department of Health,NHS Sheffield CCG,12/31/2020,Seconded-Employer's NHI Costs,CLINICAL LEADS,NHS BARNSLEY CCG,34861923,"3,675.00",E'ERS NHI-RECHGS TO-FROM OTHER NHS,WF3 1WE
Department of Health,NHS Sheffield CCG,12/31/2020,Charges from CSU,BUSINESS INFORMATICS,NHS NORTH OF ENGLAND CSU,34861914,"27,375.92",DSCRO and Data Management Services November 2020 NECS-3037-2180,WF3 1WE
Department of Health,NHS Sheffield CCG,12/31/2020,Charges from CSU,BUSINESS INFORMATICS,NHS NORTH OF ENGLAND CSU,34955396,"27,375.92",DSCRO and Data Management Services DEC 2020 NECS-3037-2180,WF3 1WE
Department of Health,NHS Sheffield CCG,12/31/2020,C&M-GMS Cost of Drugs -Prescribing,LOCAL ENHANCED SERVICES,NORFOLK PARK HEALTH CENTRE,35080442,"5,018.36",DRGP,S2 3TA
Department of Health,NHS Sheffield CCG,12/31/2020,C&M-GMS Global Sum,PRC DELEGATED CO-COMMISSIONING,NORFOLK PARK HEALTH CENTRE,35080442,"42,448.61",GSUMG,S2 3TA
Department of Health,NHS Sheffield CCG,12/31/2020,C&M-GMS PCN DES Participation,PRC DELEGATED CO-COMMISSIONING,NORFOLK PARK HEALTH CENTRE,35080442,"1,603.19",PARTIG,S2 3TA
Department of Health,NHS Sheffield CCG,12/31/2020,C&M-GMS Prem Healthcentre Rent,PRC DELEGATED CO-COMMISSIONING,NORFOLK PARK HEALTH CENTRE,35080442,"25,249.98",HEALTH,S2 3TA
Department of Health,NHS Sheffield CCG,12/31/2020,C&M-GMS Prof Fees Prescribing,PRC DELEGATED CO-COMMISSIONING,NORFOLK PARK HEALTH CENTRE,35080442,"1,185.04",DRGPPF,S2 3TA
Department of Health,NHS Sheffield CCG,12/31/2020,C&M-GMS QOF Aspiration,PRC DELEGATED CO-COMMISSIONING,NORFOLK PARK HEALTH CENTRE,35080442,"3,959.66",QUASPG,S2 3TA
Department of Health,NHS Sheffield CCG,12/31/2020,C&M-GMS Cost of Drugs -Prescribing,LOCAL ENHANCED SERVICES,NORWOOD MEDICAL CENTRE SHEFFIELD,35080445,"9,886.21",DRGP,S5 7HD
Department of Health,NHS Sheffield CCG,12/31/2020,C&M-GMS DES Minor Surgery,PRC DELEGATED CO-COMMISSIONING,NORWOOD MEDICAL CENTRE SHEFFIELD,35080445,"1,320.00",DEMSUG,S5 7HD
Department of Health,NHS Sheffield CCG,12/31/2020,C&M-GMS Global Sum,PRC DELEGATED CO-COMMISSIONING,NORWOOD MEDICAL CENTRE SHEFFIELD,35080445,"68,410.54",GSUMG,S5 7HD
Department of Health,NHS Sheffield CCG,12/31/2020,C&M-GMS PCN DES Participation,PRC DELEGATED CO-COMMISSIONING,NORWOOD MEDICAL CENTRE SHEFFIELD,35080445,"2,690.13",PARTIG,S5 7HD
Department of Health,NHS Sheffield CCG,12/31/2020,C&M-GMS PCO Other,PRC DELEGATED CO-COMMISSIONING,NORWOOD MEDICAL CENTRE SHEFFIELD,35080445,513.80,CQCRG,S5 7HD
Department of Health,NHS Sheffield CCG,12/31/2020,C&M-GMS Prem Notional Rent,PRC DELEGATED CO-COMMISSIONING,NORWOOD MEDICAL CENTRE SHEFFIELD,35080445,"5,187.50",NRENT,S5 7HD
Department of Health,NHS Sheffield CCG,12/31/2020,C&M-GMS Prem Water Rates,PRC DELEGATED CO-COMMISSIONING,NORWOOD MEDICAL CENTRE SHEFFIELD,35080445,242.03,RAMW,S5 7HD
Department of Health,NHS Sheffield CCG,12/31/2020,C&M-GMS Prof Fees Prescribing,PRC DELEGATED CO-COMMISSIONING,NORWOOD MEDICAL CENTRE SHEFFIELD,35080445,"2,271.54",DRGPPF,S5 7HD
Department of Health,NHS Sheffield CCG,12/31/2020,C&M-GMS QOF Aspiration,PRC DELEGATED CO-COMMISSIONING,NORWOOD MEDICAL CENTRE SHEFFIELD,35080445,"8,207.51",QUASPG,S5 7HD
Department of Health,NHS Sheffield CCG,12/31/2020,C&M-GMS Cost of Drugs -Dispensing,LOCAL ENHANCED SERVICES,OUGHTIBRIDGE SURGERY,35080449,"36,215.17","DRGD,DRGADV",S35 0FW
Department of Health,NHS Sheffield CCG,12/31/2020,C&M-GMS DES Minor Surgery,PRC DELEGATED CO-COMMISSIONING,OUGHTIBRIDGE SURGERY,35080449,480.00,DEMSUG,S35 0FW
Department of Health,NHS Sheffield CCG,12/31/2020,C&M-GMS Global Sum,PRC DELEGATED CO-COMMISSIONING,OUGHTIBRIDGE SURGERY,35080449,"45,143.64",GSUMG,S35 0FW
Department of Health,NHS Sheffield CCG,12/31/2020,C&M-GMS PCN DES Participation,PRC DELEGATED CO-COMMISSIONING,OUGHTIBRIDGE SURGERY,35080449,"1,785.92",PARTIG,S35 0FW
Department of Health,NHS Sheffield CCG,12/31/2020,C&M-GMS Prem Notional Rent,PRC DELEGATED CO-COMMISSIONING,OUGHTIBRIDGE SURGERY,35080449,"3,957.33",NRENT,S35 0FW
Department of Health,NHS Sheffield CCG,12/31/2020,C&M-GMS Prof Fees Dispensing,PRC DELEGATED CO-COMMISSIONING,OUGHTIBRIDGE SURGERY,35080449,"6,483.37",DRGDPF,S35 0FW
Department of Health,NHS Sheffield CCG,12/31/2020,C&M-GMS PrscrptnChrgsColl&RmttdbyGP,LOCAL ENHANCED SERVICES,OUGHTIBRIDGE SURGERY,35080449,640.50,DRGPR,S35 0FW
Department of Health,NHS Sheffield CCG,12/31/2020,C&M-GMS QOF Aspiration,PRC DELEGATED CO-COMMISSIONING,OUGHTIBRIDGE SURGERY,35080449,"4,282.40",QUASPG,S35 0FW
Department of Health,NHS Sheffield CCG,12/31/2020,C&M-PMS Contract Value,PRC DELEGATED CO-COMMISSIONING,OWLTHORPE MEDICAL CENTRE,34893499,"34,846.24",BABALP,S20 6PD
Department of Health,NHS Sheffield CCG,12/31/2020,C&M-PMS Funding Differential Review,PRC DELEGATED CO-COMMISSIONING,OWLTHORPE MEDICAL CENTRE,34893499,280.01,ZFUNFP,S20 6PD
Department of Health,NHS Sheffield CCG,12/31/2020,C&M-PMS Out of Hours Opt Outs,PRC DELEGATED CO-COMMISSIONING,OWLTHORPE MEDICAL CENTRE,34893499,2.82,APMOOH,S20 6PD
Department of Health,NHS Sheffield CCG,12/31/2020,C&M-PMS PCN DES Participation,PRC DELEGATED CO-COMMISSIONING,OWLTHORPE MEDICAL CENTRE,34893499,"1,267.74",PARTIP,S20 6PD
Department of Health,NHS Sheffield CCG,12/31/2020,C&M-PMS PCO Other,PRC DELEGATED CO-COMMISSIONING,OWLTHORPE MEDICAL CENTRE,34893499,305.40,CQCRP,S20 6PD
Department of Health,NHS Sheffield CCG,12/31/2020,C&M-PMS Prem Actual Rent,PRC DELEGATED CO-COMMISSIONING,OWLTHORPE MEDICAL CENTRE,34893499,"7,539.58",RENT,S20 6PD
Department of Health,NHS Sheffield CCG,12/31/2020,C&M-PMS Prem Water Rates,PRC DELEGATED CO-COMMISSIONING,OWLTHORPE MEDICAL CENTRE,34893499,79.29,RAMWP,S20 6PD
Department of Health,NHS Sheffield CCG,12/31/2020,C&M-PMS QOF Aspiration,PRC DELEGATED CO-COMMISSIONING,OWLTHORPE MEDICAL CENTRE,34893499,"3,728.91",QUASPP,S20 6PD
Department of Health,NHS Sheffield CCG,12/31/2020,C&M-PMS Contract Value,PRC DELEGATED CO-COMMISSIONING,PAGE HALL MEDICAL CENTRE,34893501,"60,296.43",BABALP,S4 8GB
Department of Health,NHS Sheffield CCG,12/31/2020,C&M-PMS Funding Differential Review,PRC DELEGATED CO-COMMISSIONING,PAGE HALL MEDICAL CENTRE,34893501,"1,161.37",ZFUNFP,S4 8GB
Department of Health,NHS Sheffield CCG,12/31/2020,C&M-PMS Out of Hours Opt Outs,PRC DELEGATED CO-COMMISSIONING,PAGE HALL MEDICAL CENTRE,34893501,30.02,APMOOH,S4 8GB
Department of Health,NHS Sheffield CCG,12/31/2020,C&M-PMS PCN DES Participation,PRC DELEGATED CO-COMMISSIONING,PAGE HALL MEDICAL CENTRE,34893501,"2,194.23",PARTIP,S4 8GB
Department of Health,NHS Sheffield CCG,12/31/2020,C&M-PMS PCO Other,PRC DELEGATED CO-COMMISSIONING,PAGE HALL MEDICAL CENTRE,34893501,502.90,CQCRP,S4 8GB
Department of Health,NHS Sheffield CCG,12/31/2020,C&M-PMS Prem Notional Rent,PRC DELEGATED CO-COMMISSIONING,PAGE HALL MEDICAL CENTRE,34893501,"4,833.33",NRENT,S4 8GB
Department of Health,NHS Sheffield CCG,12/31/2020,C&M-PMS Prem Rates,PRC DELEGATED CO-COMMISSIONING,PAGE HALL MEDICAL CENTRE,34893501,"1,285.00",RANDRP,S4 8GB
Department of Health,NHS Sheffield CCG,12/31/2020,C&M-PMS QOF Aspiration,PRC DELEGATED CO-COMMISSIONING,PAGE HALL MEDICAL CENTRE,34893501,"3,909.14",QUASPP,S4 8GB
Department of Health,NHS Sheffield CCG,12/31/2020,C&M-APMS Other Delivery,GP FORWARD VIEW,PITSMOOR SURGERY,35082096,"30,260.78",PCN DEVELOPMENT 2021,S3 9DL
Department of Health,NHS Sheffield CCG,12/31/2020,C&M-PMS Contract Value,PRC DELEGATED CO-COMMISSIONING,PORTER BROOK MEDICAL CENTRE,34893502,"-9,834.68",BABALP,S11 8HN
Department of Health,NHS Sheffield CCG,12/31/2020,C&M-PMS GP Statutory Levy,PRC DELEGATED CO-COMMISSIONING,PORTER BROOK MEDICAL CENTRE,34893502,"-1,016.61",STATL,S11 8HN
Department of Health,NHS Sheffield CCG,12/31/2020,C&M-PMS Out of Hours Opt Outs,PRC DELEGATED CO-COMMISSIONING,PORTER BROOK MEDICAL CENTRE,34893502,"-8,057.86",APMOOH,S11 8HN
Department of Health,NHS Sheffield CCG,12/31/2020,C&M-PMS PCN DES Participation,PRC DELEGATED CO-COMMISSIONING,PORTER BROOK MEDICAL CENTRE,34893502,"-3,182.41",PARTIP,S11 8HN
Department of Health,NHS Sheffield CCG,12/31/2020,C&M-PMS Contract Value,PRC DELEGATED CO-COMMISSIONING,PORTER BROOK MEDICAL CENTRE,34893503,"169,776.61",BABALP,S11 8HN
Department of Health,NHS Sheffield CCG,12/31/2020,C&M-PMS DES Learn Dsblty Hlth Chk,PRC DELEGATED CO-COMMISSIONING,PORTER BROOK MEDICAL CENTRE,34893503,840.00,LEARNP,S11 8HN
Department of Health,NHS Sheffield CCG,12/31/2020,C&M-PMS Funding Differential Review,PRC DELEGATED CO-COMMISSIONING,PORTER BROOK MEDICAL CENTRE,34893503,"3,636.27",ZFUNFP,S11 8HN
Department of Health,NHS Sheffield CCG,12/31/2020,C&M-PMS Out of Hours Opt Outs,PRC DELEGATED CO-COMMISSIONING,PORTER BROOK MEDICAL CENTRE,34893503,468.09,APMOOH,S11 8HN
Department of Health,NHS Sheffield CCG,12/31/2020,C&M-PMS PCN DES Participation,PRC DELEGATED CO-COMMISSIONING,PORTER BROOK MEDICAL CENTRE,34893503,"6,370.24",PARTIP,S11 8HN
Department of Health,NHS Sheffield CCG,12/31/2020,C&M-PMS Prem Actual Rent,PRC DELEGATED CO-COMMISSIONING,PORTER BROOK MEDICAL CENTRE,34893503,"1,666.67",RENT,S11 8HN
Department of Health,NHS Sheffield CCG,12/31/2020,C&M-PMS Prem Notional Rent,PRC DELEGATED CO-COMMISSIONING,PORTER BROOK MEDICAL CENTRE,34893503,"9,666.67",NRENT,S11 8HN
Department of Health,NHS Sheffield CCG,12/31/2020,C&M-PMS Prem Rates,PRC DELEGATED CO-COMMISSIONING,PORTER BROOK MEDICAL CENTRE,34893503,"2,658.00",RANDRP,S11 8HN
Department of Health,NHS Sheffield CCG,12/31/2020,C&M-PMS Prem Water Rates,PRC DELEGATED CO-COMMISSIONING,PORTER BROOK MEDICAL CENTRE,34893503,242.56,RAMWP,S11 8HN
Department of Health,NHS Sheffield CCG,12/31/2020,C&M-PMS QOF Aspiration,PRC DELEGATED CO-COMMISSIONING,PORTER BROOK MEDICAL CENTRE,34893503,"10,115.59",QUASPP,S11 8HN
Department of Health,NHS Sheffield CCG,12/31/2020,C&M-PMS Additional Staff Payments,PRC DELEGATED CO-COMMISSIONING,PORTER BROOK MEDICAL CENTRE,34992256,"46,710.00",COVID CAPACITY EXPANSION FUND 202021,S11 8HN
Department of Health,NHS Sheffield CCG,12/31/2020,C&M-GMS LES Basket of Procedures,LOCAL ENHANCED SERVICES,PRIMARY CARE SHEFFIELD LTD,34862194,"155,200.00",,S9 4EU
Department of Health,NHS Sheffield CCG,12/31/2020,C&M-GMS LES Basket of Procedures,LOCAL ENHANCED SERVICES,PRIMARY CARE SHEFFIELD LTD,34862198,"-155,200.00",,S9 4EU
Department of Health,NHS Sheffield CCG,12/31/2020,C&M-APMS DES Immediate&1st Response,LOCAL ENHANCED SERVICES,PRIMARY CARE SHEFFIELD LTD,34900515,"38,800.00",,S9 4EU
Department of Health,NHS Sheffield CCG,12/31/2020,C&M-APMS DES Extended Hours Access,GP FORWARD VIEW,PRIMARY CARE SHEFFIELD LTD,34933236,"302,608.33",,S9 4EU
Department of Health,NHS Sheffield CCG,12/31/2020,C&M-GMS LES Basket of Procedures,LOCAL ENHANCED SERVICES,PRIMARY CARE SHEFFIELD LTD,34933241,"53,558.33",,S9 4EU
Department of Health,NHS Sheffield CCG,12/31/2020,Clinical&Medical-Independent Sector,MENTAL HEALTH SERVICES - OTHER,PRIMARY CARE SHEFFIELD LTD,35032667,"30,583.50",,S9 4EU
Department of Health,NHS Sheffield CCG,12/31/2020,C&M-GMS C&M-APMS PCN DES Physician Assoc,PRC DELEGATED CO-COMMISSIONING,PRIMARY CARE SHEFFIELD LTD,35066733,"3,873.01",,S9 4EU
Department of Health,NHS Sheffield CCG,12/31/2020,C&M-GMS PCN DES Clin Pharmacist,PRC DELEGATED CO-COMMISSIONING,PRIMARY CARE SHEFFIELD LTD,35066733,"9,709.78",,S9 4EU
Department of Health,NHS Sheffield CCG,12/31/2020,C&M-GMS PCN DES Physiotherapist,PRC DELEGATED CO-COMMISSIONING,PRIMARY CARE SHEFFIELD LTD,35066733,"4,639.17",,S9 4EU
Department of Health,NHS Sheffield CCG,12/31/2020,C&M-GMS PCN DES Soc Prescribing,PRC DELEGATED CO-COMMISSIONING,PRIMARY CARE SHEFFIELD LTD,35066733,"5,672.00",,S9 4EU
Department of Health,NHS Sheffield CCG,12/31/2020,C&M-PCN DES DIETICIANS,PRC DELEGATED CO-COMMISSIONING,PRIMARY CARE SHEFFIELD LTD,35066733,"4,160.08",,S9 4EU
Department of Health,NHS Sheffield CCG,12/31/2020,C&M-PCN DES PHARMACY TECHNICIANS,PRC DELEGATED CO-COMMISSIONING,PRIMARY CARE SHEFFIELD LTD,35066733,"2,949.08",,S9 4EU
Department of Health,NHS Sheffield CCG,12/31/2020,C&M-APMS Other Delivery,GP FORWARD VIEW,PRIMARY CARE SHEFFIELD LTD,35082095,"26,657.41",PCN DEVELOPMENT 2021,S12 3GH
Department of Health,NHS Sheffield CCG,12/31/2020,C&M-APMS Other Delivery,GP FORWARD VIEW,PRIMARY CARE SHEFFIELD LTD,35082097,"26,786.34",PCN DEVELOPMENT 2021,S12 3GH
Department of Health,NHS Sheffield CCG,12/31/2020,C&M-APMS Other Delivery,GP FORWARD VIEW,PRIMARY CARE SHEFFIELD LTD,35082098,"27,265.18",PCN DEVELOPMENT 2021,S12 3GH
Department of Health,NHS Sheffield CCG,12/31/2020,C&M-APMS Other Delivery,GP FORWARD VIEW,PRIMARY CARE SHEFFIELD LTD,35082101,"25,127.68",PCN DEVELOPMENT 2021,S12 3GH
Department of Health,NHS Sheffield CCG,12/31/2020,C&M-APMS Other Delivery,GP FORWARD VIEW,PRIMARY CARE SHEFFIELD LTD,35082105,"25,467.51",PCN DEVELOPMENT 2021,S12 3GH
Department of Health,NHS Sheffield CCG,12/31/2020,C&M-GMS PCN DES Clin Pharmacist,PRC DELEGATED CO-COMMISSIONING,PRIMARY CARE SHEFFIELD LTD,35120536,"18,001.92",,S9 4EU
Department of Health,NHS Sheffield CCG,12/31/2020,C&M-GMS PCN DES Physiotherapist,PRC DELEGATED CO-COMMISSIONING,PRIMARY CARE SHEFFIELD LTD,35120536,"7,345.02",,S9 4EU
Department of Health,NHS Sheffield CCG,12/31/2020,C&M-GMS PCN DES Soc Prescribing,PRC DELEGATED CO-COMMISSIONING,PRIMARY CARE SHEFFIELD LTD,35120536,"2,671.88",,S9 4EU
Department of Health,NHS Sheffield CCG,12/31/2020,C&M-PMS Contract Value,PRC DELEGATED CO-COMMISSIONING,RICHMOND MEDICAL CENTRE,34893505,"70,806.04",BABALP,S13 8NA
Department of Health,NHS Sheffield CCG,12/31/2020,C&M-PMS Funding Differential Review,PRC DELEGATED CO-COMMISSIONING,RICHMOND MEDICAL CENTRE,34893505,"1,009.63",ZFUNFP,S13 8NA
Department of Health,NHS Sheffield CCG,12/31/2020,C&M-PMS PCN DES Participation,PRC DELEGATED CO-COMMISSIONING,RICHMOND MEDICAL CENTRE,34893505,"1,278.48",PARTIP,S13 8NA
Department of Health,NHS Sheffield CCG,12/31/2020,C&M-PMS PCO Other,PRC DELEGATED CO-COMMISSIONING,RICHMOND MEDICAL CENTRE,34893505,566.10,CQCRP,S13 8NA
Department of Health,NHS Sheffield CCG,12/31/2020,C&M-PMS Prem Notional Rent,PRC DELEGATED CO-COMMISSIONING,RICHMOND MEDICAL CENTRE,34893505,"4,731.00",NRENT,S13 8NA
Department of Health,NHS Sheffield CCG,12/31/2020,C&M-PMS Prem Rates,PRC DELEGATED CO-COMMISSIONING,RICHMOND MEDICAL CENTRE,34893505,"1,509.00",RANDRP,S13 8NA
Department of Health,NHS Sheffield CCG,12/31/2020,C&M-PMS QOF Aspiration,PRC DELEGATED CO-COMMISSIONING,RICHMOND MEDICAL CENTRE,34893505,"7,878.95",QUASPP,S13 8NA
Department of Health,NHS Sheffield CCG,12/31/2020,Cont Care-Physical Disab (<65),CHC ADULT FULLY FUNDED,ROSEBERRY CARE CENTRES,34880763,"31,785.92",CHC SCHEDULE DECEMBER 2020 - Chapel Lodge Nursing Home (Roseberry),S35 2XF
Department of Health,NHS Sheffield CCG,12/31/2020,Cont Care-Physical Disab (<65),CHC ADULT FULLY FUNDED,ROSEBERRY CARE CENTRES,34880764,"51,927.54",CHC SCHEDULE DECEMBER 2020 - Haythorne Place Nursing Home (Roseberry),S5 6AB
Department of Health,NHS Sheffield CCG,12/31/2020,Cont Care-Physical Disab (<65),CHC ADULT FULLY FUNDED,ROSEBERRY CARE CENTRES,34880773,"41,303.04",CHC SCHEDULE DECEMBER 2020 - Norbury Court Care Centre (Roseberry),S4 7AJ
Department of Health,NHS Sheffield CCG,12/31/2020,Cont Care-Funded Nursing Care Allow,FUNDED NURSING CARE,ROSEBERRY CARE CENTRES,34936658,"29,329.74",FNC SCHEDULE DECEMBER 2020 - Haythorne Place Nursing Home (Roseberry),S5 6AB
Department of Health,NHS Sheffield CCG,12/31/2020,Hcare Srv Rec Fdtn Trust-Contract Baseline,ACUTE COMMISSIONING,ROTHERHAM NHS FOUNDATION TRUST,34937491,"618,988.29",,S60 2UD
Department of Health,NHS Sheffield CCG,12/31/2020,C&M-APMS OOH Opt Outs,PRC DELEGATED CO-COMMISSIONING,RUSTLINGS ROAD MEDICAL CENTRE,34893509,4.29,APMOOA,S11 7AB
Department of Health,NHS Sheffield CCG,12/31/2020,C&M-PMS Contract Value,PRC DELEGATED CO-COMMISSIONING,RUSTLINGS ROAD MEDICAL CENTRE,34893509,"29,884.01",BABALP,S11 7AB
Department of Health,NHS Sheffield CCG,12/31/2020,C&M-PMS Funding Differential Review,PRC DELEGATED CO-COMMISSIONING,RUSTLINGS ROAD MEDICAL CENTRE,34893509,565.04,ZFUNFP,S11 7AB
Department of Health,NHS Sheffield CCG,12/31/2020,C&M-PMS PCN DES Participation,PRC DELEGATED CO-COMMISSIONING,RUSTLINGS ROAD MEDICAL CENTRE,34893509,"1,072.99",PARTIP,S11 7AB
Department of Health,NHS Sheffield CCG,12/31/2020,C&M-PMS PCO Other,PRC DELEGATED CO-COMMISSIONING,RUSTLINGS ROAD MEDICAL CENTRE,34893509,316.40,CQCRP,S11 7AB
Department of Health,NHS Sheffield CCG,12/31/2020,C&M-PMS Prem Notional Rent,PRC DELEGATED CO-COMMISSIONING,RUSTLINGS ROAD MEDICAL CENTRE,34893509,"1,312.50",NRENT,S11 7AB
Department of Health,NHS Sheffield CCG,12/31/2020,C&M-PMS Prem Water Rates,PRC DELEGATED CO-COMMISSIONING,RUSTLINGS ROAD MEDICAL CENTRE,34893509,32.87,RAMWP,S11 7AB
Department of Health,NHS Sheffield CCG,12/31/2020,C&M-PMS QOF Aspiration,PRC DELEGATED CO-COMMISSIONING,RUSTLINGS ROAD MEDICAL CENTRE,34893509,"2,857.73",QUASPP,S11 7AB
Department of Health,NHS Sheffield CCG,12/31/2020,Cont Care-Physical Disab (<65),CHC ADULT FULLY FUNDED,SCARSDALE GRANGE NURSING HOME,34880754,"30,702.43",CHC SCHEDULE DECEMBER 2020 - Scarsdale Grange Nursing Home,S8 9EQ
Department of Health,NHS Sheffield CCG,12/31/2020,C&M-PMS Contract Value,PRC DELEGATED CO-COMMISSIONING,SELBORNE ROAD MEDICAL CENTRE,34893507,"19,674.52",BABALP,S10 5ND
Department of Health,NHS Sheffield CCG,12/31/2020,C&M-PMS Funding Differential Review,PRC DELEGATED CO-COMMISSIONING,SELBORNE ROAD MEDICAL CENTRE,34893507,478.42,ZFUNFP,S10 5ND
Department of Health,NHS Sheffield CCG,12/31/2020,C&M-PMS Out of Hours Opt Outs,PRC DELEGATED CO-COMMISSIONING,SELBORNE ROAD MEDICAL CENTRE,34893507,9.35,APMOOH,S10 5ND
Department of Health,NHS Sheffield CCG,12/31/2020,C&M-PMS PCN DES Participation,PRC DELEGATED CO-COMMISSIONING,SELBORNE ROAD MEDICAL CENTRE,34893507,732.30,PARTIP,S10 5ND
Department of Health,NHS Sheffield CCG,12/31/2020,C&M-PMS PCO Other,PRC DELEGATED CO-COMMISSIONING,SELBORNE ROAD MEDICAL CENTRE,34893507,203.80,CQCRP,S10 5ND
Department of Health,NHS Sheffield CCG,12/31/2020,C&M-PMS Prem Notional Rent,PRC DELEGATED CO-COMMISSIONING,SELBORNE ROAD MEDICAL CENTRE,34893507,"1,735.42",NRENT,S10 5ND
Department of Health,NHS Sheffield CCG,12/31/2020,C&M-PMS Prem Rates,PRC DELEGATED CO-COMMISSIONING,SELBORNE ROAD MEDICAL CENTRE,34893507,611.00,RANDRP,S10 5ND
Department of Health,NHS Sheffield CCG,12/31/2020,C&M-PMS QOF Aspiration,PRC DELEGATED CO-COMMISSIONING,SELBORNE ROAD MEDICAL CENTRE,34893507,"1,877.44",QUASPP,S10 5ND
Department of Health,NHS Sheffield CCG,12/31/2020,Cont Care-Physical Disab (<65),CHC ADULT FULLY FUNDED,SEVEN HILLS NURSING HOME,34880755,"31,771.51",CHC SCHEDULE DECEMBER 2020 - Seven Hills Nursing Home,S11 9AA
Department of Health,NHS Sheffield CCG,12/31/2020,C&M-GMS Cost of Drugs -Prescribing,LOCAL ENHANCED SERVICES,SHARROW LANE MEDICAL CENTRE,35080453,"2,283.10",DRGP,S11 8AN
Department of Health,NHS Sheffield CCG,12/31/2020,C&M-GMS DES Minor Surgery,PRC DELEGATED CO-COMMISSIONING,SHARROW LANE MEDICAL CENTRE,35080453,160.00,DEMSUG,S11 8AN
Department of Health,NHS Sheffield CCG,12/31/2020,C&M-GMS Global Sum,PRC DELEGATED CO-COMMISSIONING,SHARROW LANE MEDICAL CENTRE,35080453,"25,224.04",GSUMG,S11 8AN
Department of Health,NHS Sheffield CCG,12/31/2020,C&M-GMS PCN DES Participation,PRC DELEGATED CO-COMMISSIONING,SHARROW LANE MEDICAL CENTRE,35080453,976.69,PARTIG,S11 8AN
Department of Health,NHS Sheffield CCG,12/31/2020,C&M-GMS PCO Other,PRC DELEGATED CO-COMMISSIONING,SHARROW LANE MEDICAL CENTRE,35080453,274.00,CQCRG,S11 8AN
Department of Health,NHS Sheffield CCG,12/31/2020,C&M-GMS Prem Notional Rent,PRC DELEGATED CO-COMMISSIONING,SHARROW LANE MEDICAL CENTRE,35080453,"2,741.67",NRENT,S11 8AN
Department of Health,NHS Sheffield CCG,12/31/2020,C&M-GMS Prof Fees Prescribing,PRC DELEGATED CO-COMMISSIONING,SHARROW LANE MEDICAL CENTRE,35080453,619.21,DRGPPF,S11 8AN
Department of Health,NHS Sheffield CCG,12/31/2020,C&M-GMS QOF Aspiration,PRC DELEGATED CO-COMMISSIONING,SHARROW LANE MEDICAL CENTRE,35080453,"2,676.86",QUASPG,S11 8AN
Department of Health,NHS Sheffield CCG,12/31/2020,Hcare Srv Rec Fdtn Trust-Contract Baseline,ACUTE CHILDRENS SERVICES,SHEFFIELD CHILDRENS NHS FOUNDATION TRUST,34937487,"3,460,348.98",,S10 2TH
Department of Health,NHS Sheffield CCG,12/31/2020,Hcare Srv Rec Fdtn Trust-Contract Baseline,CHILD AND ADOLESCENT MENTAL HEALTH,SHEFFIELD CHILDRENS NHS FOUNDATION TRUST,34937488,"125,000.00",,S10 2TH
Department of Health,NHS Sheffield CCG,12/31/2020,Hcare Srv Rec Fdtn Trust-Contract Baseline,ACUTE CHILDRENS SERVICES,SHEFFIELD CHILDRENS NHS FOUNDATION TRUST,34937494,"2,464,396.64",,S10 2TH
Department of Health,NHS Sheffield CCG,12/31/2020,Cont Care-Physical Disab (65+),CHC ADULT FULLY FUNDED,SHEFFIELD CITY COUNCIL,34936613,"944,263.66",RMT SCHEDULE DECEMBER 2020,S1 1UJ
Department of Health,NHS Sheffield CCG,12/31/2020,Cont Care- Prior Year Payments,CHC ADULT FULLY FUNDED,SHEFFIELD CITY COUNCIL,34936614,"46,165.25",RMT SCHEDULE DECEMBER 2020PY,S1 1UJ
Department of Health,NHS Sheffield CCG,12/31/2020,Cont Care- Children,CHC CHILDREN,SHEFFIELD CITY COUNCIL,34936615,"125,942.66",CHILDRENS SCHEDULE DECEMBER 2020,S1 1UJ
Department of Health,NHS Sheffield CCG,12/31/2020,Clinical&Medical-Othe Public Sector,COMMUNITY SERVICES,SHEFFIELD CITY COUNCIL,35032799,"150,416.67",,S1 1UJ
Department of Health,NHS Sheffield CCG,12/31/2020,Clinical&Medical-Othe Public Sector,MENTAL HEALTH SERVICES - COLLABORATIVE COMMISSIONING,SHEFFIELD CITY COUNCIL,35032799,"83,669.09",,S1 1UJ
Department of Health,NHS Sheffield CCG,12/31/2020,Clinical&Medical-Othe Public Sector,REABLEMENT,SHEFFIELD CITY COUNCIL,35032799,"21,808.67",,S1 1UJ
Department of Health,NHS Sheffield CCG,12/31/2020,Clinical&Medical-Othe Public Sector,SAFEGUARDING,SHEFFIELD CITY COUNCIL,35032799,"16,596.33",,S1 1UJ
Department of Health,NHS Sheffield CCG,12/31/2020,Cont Care-Physical Disab (65+),CHC ADULT FULLY FUNDED,SHEFFIELD CITY COUNCIL,35032799,"59,435.47",,S1 1UJ
Department of Health,NHS Sheffield CCG,12/31/2020,Soc Care-Joint H&C Teams/Working,INTERMEDIATE CARE,SHEFFIELD CITY COUNCIL,35032799,"151,447.58",,S1 1UJ
Department of Health,NHS Sheffield CCG,12/31/2020,Soc Care-Other Soc Care,COMMISSIONING - NON ACUTE,SHEFFIELD CITY COUNCIL,35032799,"1,635,250.00",,S1 1UJ
Department of Health,NHS Sheffield CCG,12/31/2020,Soc Care-Support Prim Care,COMMUNITY SERVICES,SHEFFIELD CITY COUNCIL,35032799,"58,000.00",,S1 1UJ
Department of Health,NHS Sheffield CCG,12/31/2020,Programme Support Costs,COUNSELLING SERVICES,SHEFFIELD CITY COUNCIL,35097158,"26,750.00",,S1 1UJ
Department of Health,NHS Sheffield CCG,12/31/2020,Clinical&Medical-Voluntary Sector,CHILD AND ADOLESCENT MENTAL HEALTH,SHEFFIELD FUTURES,34955397,"25,600.00",,S1 4GE
Department of Health,NHS Sheffield CCG,12/31/2020,Hcare Srv Rec Fdtn Trust-Contract Baseline,MENTAL HEALTH CONTRACTS,SHEFFIELD HEALTH & SOCIAL CARE NHS FOUNDATION TRUST,34862281,"229,000.00",,S10 3TH
Department of Health,NHS Sheffield CCG,12/31/2020,Hcare Srv Rec Fdtn Trust-Contract Baseline,MENTAL HEALTH CONTRACTS,SHEFFIELD HEALTH & SOCIAL CARE NHS FOUNDATION TRUST,34937489,"8,128,989.53",,S10 3TH
Department of Health,NHS Sheffield CCG,12/31/2020,Hcare Srv Rec Fdtn Trust-Contract Baseline,MENTAL HEALTH CONTRACTS,SHEFFIELD HEALTH & SOCIAL CARE NHS FOUNDATION TRUST,34937495,"886,359.10",,S10 3TH
Department of Health,NHS Sheffield CCG,12/31/2020,Hcare Srv Rec Fdtn Trust-Contract Baseline,ACUTE COMMISSIONING,SHEFFIELD TEACHING HOSPITALS NHS FOUNDATION TRUST,34937490,"37,588,203.57",,S5 7AU
Department of Health,NHS Sheffield CCG,12/31/2020,Hcare Srv Rec Fdtn Trust-Contract Baseline,ACUTE COMMISSIONING,SHEFFIELD TEACHING HOSPITALS NHS FOUNDATION TRUST,34937496,"7,124,165.82",,S5 7AU
Department of Health,NHS Sheffield CCG,12/31/2020,Seconded-Basic Sal-Staff fm oth org,BEREAVEMENT SERVICE,SHEFFIELD TEACHING HOSPITALS NHS FOUNDATION TRUST,35085987,"35,994.04",,S5 7AU
Department of Health,NHS Sheffield CCG,12/31/2020,C&M-GMS Cost of Drugs -Prescribing,LOCAL ENHANCED SERVICES,SHIREGREEN MEDICAL CENTRE,35080461,"10,617.38",DRGP,S5 0RG
Department of Health,NHS Sheffield CCG,12/31/2020,C&M-GMS DES Minor Surgery,PRC DELEGATED CO-COMMISSIONING,SHIREGREEN MEDICAL CENTRE,35080461,240.00,DEMSUG,S5 0RG
Department of Health,NHS Sheffield CCG,12/31/2020,C&M-GMS Global Sum,PRC DELEGATED CO-COMMISSIONING,SHIREGREEN MEDICAL CENTRE,35080461,"59,228.26",GSUMG,S5 0RG
Department of Health,NHS Sheffield CCG,12/31/2020,C&M-GMS PCN DES Participation,PRC DELEGATED CO-COMMISSIONING,SHIREGREEN MEDICAL CENTRE,35080461,"2,389.19",PARTIG,S5 0RG
Department of Health,NHS Sheffield CCG,12/31/2020,C&M-GMS PCO Other,PRC DELEGATED CO-COMMISSIONING,SHIREGREEN MEDICAL CENTRE,35080461,496.00,CQCRG,S5 0RG
Department of Health,NHS Sheffield CCG,12/31/2020,C&M-GMS Prem Cost Rent,PRC DELEGATED CO-COMMISSIONING,SHIREGREEN MEDICAL CENTRE,35080461,"1,792.33",COST,S5 0RG
Department of Health,NHS Sheffield CCG,12/31/2020,C&M-GMS Prem Notional Rent,PRC DELEGATED CO-COMMISSIONING,SHIREGREEN MEDICAL CENTRE,35080461,"5,375.00",NRENT,S5 0RG
Department of Health,NHS Sheffield CCG,12/31/2020,C&M-GMS Prof Fees Prescribing,PRC DELEGATED CO-COMMISSIONING,SHIREGREEN MEDICAL CENTRE,35080461,"2,598.12",DRGPPF,S5 0RG
Department of Health,NHS Sheffield CCG,12/31/2020,C&M-GMS QOF Aspiration,PRC DELEGATED CO-COMMISSIONING,SHIREGREEN MEDICAL CENTRE,35080461,"6,876.28",QUASPG,S5 0RG
Department of Health,NHS Sheffield CCG,12/31/2020,C&M-PMS Contract Value,PRC DELEGATED CO-COMMISSIONING,SLOAN MEDICAL CENTRE,34893511,"99,435.02",BABALP,S8 0YH
Department of Health,NHS Sheffield CCG,12/31/2020,C&M-PMS Funding Differential Review,PRC DELEGATED CO-COMMISSIONING,SLOAN MEDICAL CENTRE,34893511,"1,677.40",ZFUNFP,S8 0YH
Department of Health,NHS Sheffield CCG,12/31/2020,C&M-PMS PCN DES Participation,PRC DELEGATED CO-COMMISSIONING,SLOAN MEDICAL CENTRE,34893511,"3,662.66",PARTIP,S8 0YH
Department of Health,NHS Sheffield CCG,12/31/2020,C&M-PMS Prem Actual Rent,PRC DELEGATED CO-COMMISSIONING,SLOAN MEDICAL CENTRE,34893511,"60,820.83",RENT,S8 0YH
Department of Health,NHS Sheffield CCG,12/31/2020,C&M-PMS Prem Notional Rent,PRC DELEGATED CO-COMMISSIONING,SLOAN MEDICAL CENTRE,34893511,747.50,NRENT,S8 0YH
Department of Health,NHS Sheffield CCG,12/31/2020,C&M-PMS Prem Rates,PRC DELEGATED CO-COMMISSIONING,SLOAN MEDICAL CENTRE,34893511,"3,478.00",RANDRP,S8 0YH
Department of Health,NHS Sheffield CCG,12/31/2020,C&M-PMS QOF Aspiration,PRC DELEGATED CO-COMMISSIONING,SLOAN MEDICAL CENTRE,34893511,"9,977.55",QUASPP,S8 0YH
Department of Health,NHS Sheffield CCG,12/31/2020,C&M-PMS Additional Staff Payments,PRC DELEGATED CO-COMMISSIONING,SLOAN MEDICAL CENTRE,34992282,"28,335.00",COVID CAPACITY EXPANSION FUND 202021,S8 0YH
Department of Health,NHS Sheffield CCG,12/31/2020,C&M-PMS Contract Value,PRC DELEGATED CO-COMMISSIONING,SOTHALL MEDICAL CENTRE,34893513,"74,027.10",BABALP,S20 1HQ
Department of Health,NHS Sheffield CCG,12/31/2020,C&M-PMS Funding Differential Review,PRC DELEGATED CO-COMMISSIONING,SOTHALL MEDICAL CENTRE,34893513,"1,401.44",ZFUNFP,S20 1HQ
Department of Health,NHS Sheffield CCG,12/31/2020,C&M-PMS PCN DES Participation,PRC DELEGATED CO-COMMISSIONING,SOTHALL MEDICAL CENTRE,34893513,"2,710.63",PARTIP,S20 1HQ
Department of Health,NHS Sheffield CCG,12/31/2020,C&M-PMS Prem Notional Rent,PRC DELEGATED CO-COMMISSIONING,SOTHALL MEDICAL CENTRE,34893513,"5,116.67",NRENT,S20 1HQ
Department of Health,NHS Sheffield CCG,12/31/2020,C&M-PMS Prem Rates,PRC DELEGATED CO-COMMISSIONING,SOTHALL MEDICAL CENTRE,34893513,"1,435.00",RANDRP,S20 1HQ
Department of Health,NHS Sheffield CCG,12/31/2020,C&M-PMS QOF Aspiration,PRC DELEGATED CO-COMMISSIONING,SOTHALL MEDICAL CENTRE,34893513,"8,491.33",QUASPP,S20 1HQ
Department of Health,NHS Sheffield CCG,12/31/2020,Cont Care- Adult 100% Fully Funded,CHC ADULT FULLY FUNDED,SOUTH YORKSHIRE HOUSING ASSOCIATION LTD,34849365,"25,500.00",Birch Avenue - Additional Staff December 20,S1 4HF
Department of Health,NHS Sheffield CCG,12/31/2020,Cont Care- Adult 100% Fully Funded,CHC ADULT FULLY FUNDED,SOUTH YORKSHIRE HOUSING ASSOCIATION LTD,34849368,"46,763.59",Birch Avenue - December 20,S1 4HF
Department of Health,NHS Sheffield CCG,12/31/2020,Clinical&Medical-Independent Sector,MENTAL HEALTH CONTRACTS,SOUTH YORKSHIRE HOUSING ASSOCIATION LTD,34849372,"34,434.83",Lister Avenue - December 20,S1 4HF
Department of Health,NHS Sheffield CCG,12/31/2020,Cont Care-Physical Disab (<65),CHC ADULT FULLY FUNDED,SOUTH YORKSHIRE HOUSING ASSOCIATION LTD,34880740,"54,710.09",CHC SCHEDULE DECEMBER 2020 - Birch Avenue Nursing Home (SYHA),S35 1RQ
Department of Health,NHS Sheffield CCG,12/31/2020,C&M-PMS Contract Value,PRC DELEGATED CO-COMMISSIONING,SOUTHEY GREEN MEDICAL CENTRE,34893515,"25,905.82",BABALP,S5 7QB
Department of Health,NHS Sheffield CCG,12/31/2020,C&M-PMS Funding Differential Review,PRC DELEGATED CO-COMMISSIONING,SOUTHEY GREEN MEDICAL CENTRE,34893515,612.28,ZFUNFP,S5 7QB
Department of Health,NHS Sheffield CCG,12/31/2020,C&M-PMS Out of Hours Opt Outs,PRC DELEGATED CO-COMMISSIONING,SOUTHEY GREEN MEDICAL CENTRE,34893515,1.73,APMOOH,S5 7QB
Department of Health,NHS Sheffield CCG,12/31/2020,C&M-PMS PCN DES Participation,PRC DELEGATED CO-COMMISSIONING,SOUTHEY GREEN MEDICAL CENTRE,34893515,475.95,PARTIP,S5 7QB
Department of Health,NHS Sheffield CCG,12/31/2020,C&M-PMS Prem Notional Rent,PRC DELEGATED CO-COMMISSIONING,SOUTHEY GREEN MEDICAL CENTRE,34893515,"3,362.50",NRENT,S5 7QB
Department of Health,NHS Sheffield CCG,12/31/2020,C&M-PMS Prem Rates,PRC DELEGATED CO-COMMISSIONING,SOUTHEY GREEN MEDICAL CENTRE,34893515,"1,198.00",RANDRP,S5 7QB
Department of Health,NHS Sheffield CCG,12/31/2020,C&M-PMS QOF Aspiration,PRC DELEGATED CO-COMMISSIONING,SOUTHEY GREEN MEDICAL CENTRE,34893515,"2,637.54",QUASPP,S5 7QB
Department of Health,NHS Sheffield CCG,12/31/2020,Clinical&Medical-Independent Sector,ACUTE COMMISSIONING,SPAMEDICA LTD,35032821,"148,200.28",https://nww.einvoice-prod.sbs.nhs.uk:8179/invoicepdf/4646fa90-69c9-5651-b3d2-bbcae49dffde,M15 4SQ
Department of Health,NHS Sheffield CCG,12/31/2020,C&M-GMS Global Sum,PRC DELEGATED CO-COMMISSIONING,STANNINGTON MEDICAL CENTRE,35080465,"26,905.49",GSUMG,S6 6BX
Department of Health,NHS Sheffield CCG,12/31/2020,C&M-GMS PCO Other,PRC DELEGATED CO-COMMISSIONING,STANNINGTON MEDICAL CENTRE,35080465,243.40,CQCRG,S6 6BX
Department of Health,NHS Sheffield CCG,12/31/2020,C&M-GMS Prem Notional Rent,PRC DELEGATED CO-COMMISSIONING,STANNINGTON MEDICAL CENTRE,35080465,"2,575.00",NRENT,S6 6BX
Department of Health,NHS Sheffield CCG,12/31/2020,C&M-GMS Prem Rates,PRC DELEGATED CO-COMMISSIONING,STANNINGTON MEDICAL CENTRE,35080465,500.00,RANDR,S6 6BX
Department of Health,NHS Sheffield CCG,12/31/2020,C&M-GMS QOF Aspiration,PRC DELEGATED CO-COMMISSIONING,STANNINGTON MEDICAL CENTRE,35080465,"3,017.79",QUASPG,S6 6BX
Department of Health,NHS Sheffield CCG,12/31/2020,Cont Care- Prior Year Payments,CHC ADULT FULLY FUNDED,CHC RETRO,35127465,"32,213.56",,S12 4NW
Department of Health,NHS Sheffield CCG,12/31/2020,C&M-GMS Cost of Drugs -Prescribing,LOCAL ENHANCED SERVICES,STONECROFT MEDICAL CENTRE,35080463,"1,048.81",DRGP,S12 2LJ
Department of Health,NHS Sheffield CCG,12/31/2020,C&M-GMS DES Minor Surgery,PRC DELEGATED CO-COMMISSIONING,STONECROFT MEDICAL CENTRE,35080463,"1,040.00",DEMSUG,S12 2LJ
Department of Health,NHS Sheffield CCG,12/31/2020,C&M-GMS Global Sum,PRC DELEGATED CO-COMMISSIONING,STONECROFT MEDICAL CENTRE,35080463,"34,360.14",GSUMG,S12 2LJ
Department of Health,NHS Sheffield CCG,12/31/2020,C&M-GMS PCN DES Participation,PRC DELEGATED CO-COMMISSIONING,STONECROFT MEDICAL CENTRE,35080463,"1,337.22",PARTIG,S12 2LJ
Department of Health,NHS Sheffield CCG,12/31/2020,C&M-GMS PCO Other,PRC DELEGATED CO-COMMISSIONING,STONECROFT MEDICAL CENTRE,35080463,286.80,CQCRG,S12 2LJ
Department of Health,NHS Sheffield CCG,12/31/2020,C&M-GMS Prem Notional Rent,PRC DELEGATED CO-COMMISSIONING,STONECROFT MEDICAL CENTRE,35080463,"2,808.33",NRENT,S12 2LJ
Department of Health,NHS Sheffield CCG,12/31/2020,C&M-GMS Prem Rates,PRC DELEGATED CO-COMMISSIONING,STONECROFT MEDICAL CENTRE,35080463,"1,235.00",RANDR,S12 2LJ
Department of Health,NHS Sheffield CCG,12/31/2020,C&M-GMS Prof Fees Prescribing,PRC DELEGATED CO-COMMISSIONING,STONECROFT MEDICAL CENTRE,35080463,354.98,DRGPPF,S12 2LJ
Department of Health,NHS Sheffield CCG,12/31/2020,C&M-GMS QOF Aspiration,PRC DELEGATED CO-COMMISSIONING,STONECROFT MEDICAL CENTRE,35080463,"4,246.35",QUASPG,S12 2LJ
Department of Health,NHS Sheffield CCG,12/31/2020,Clinical&Medical-Independent Sector,MENTAL HEALTH CONTRACTS,SUSASH GB LTD T/A EAGLE HOUSE,34849370,"30,091.75",Eagle House - December 20,S11 8NP
Department of Health,NHS Sheffield CCG,12/31/2020,Cont Care-Physical Disab (<65),CHC ADULT FULLY FUNDED,SUSASH GB LTD T/A EAGLE HOUSE,34880775,"30,801.16",CHC SCHEDULE DECEMBER 2020 - Eagle House Nursing Home (Susash GB Ltd),S11 8NP
Department of Health,NHS Sheffield CCG,12/31/2020,C&M-GMS Cost of Drugs -Prescribing,LOCAL ENHANCED SERVICES,TOTLEY RISE MEDICAL CENTRE,35080467,"12,008.82",DRGP,S17 4DQ
Department of Health,NHS Sheffield CCG,12/31/2020,C&M-GMS DES Minor Surgery,PRC DELEGATED CO-COMMISSIONING,TOTLEY RISE MEDICAL CENTRE,35080467,160.00,DEMSUG,S17 4DQ
Department of Health,NHS Sheffield CCG,12/31/2020,C&M-GMS Global Sum,PRC DELEGATED CO-COMMISSIONING,TOTLEY RISE MEDICAL CENTRE,35080467,"27,436.83",GSUMG,S17 4DQ
Department of Health,NHS Sheffield CCG,12/31/2020,C&M-GMS PCN DES Participation,PRC DELEGATED CO-COMMISSIONING,TOTLEY RISE MEDICAL CENTRE,35080467,"1,063.31",PARTIG,S17 4DQ
Department of Health,NHS Sheffield CCG,12/31/2020,C&M-GMS Prem Notional Rent,PRC DELEGATED CO-COMMISSIONING,TOTLEY RISE MEDICAL CENTRE,35080467,"1,604.17",NRENT,S17 4DQ
Department of Health,NHS Sheffield CCG,12/31/2020,C&M-GMS Prem Rates,PRC DELEGATED CO-COMMISSIONING,TOTLEY RISE MEDICAL CENTRE,35080467,636.23,RANDR,S17 4DQ
Department of Health,NHS Sheffield CCG,12/31/2020,C&M-GMS Prof Fees Prescribing,PRC DELEGATED CO-COMMISSIONING,TOTLEY RISE MEDICAL CENTRE,35080467,"2,553.21",DRGPPF,S17 4DQ
Department of Health,NHS Sheffield CCG,12/31/2020,C&M-GMS QOF Aspiration,PRC DELEGATED CO-COMMISSIONING,TOTLEY RISE MEDICAL CENTRE,35080467,"2,402.35",QUASPG,S17 4DQ
Department of Health,NHS Sheffield CCG,12/31/2020,C&M-GMS Cost of Drugs -Prescribing,LOCAL ENHANCED SERVICES,TRAMWAYS MEDICAL CENTRE,35080469,"8,119.62",DRGP,S6 4JQ
Department of Health,NHS Sheffield CCG,12/31/2020,C&M-GMS DES Minor Surgery,PRC DELEGATED CO-COMMISSIONING,TRAMWAYS MEDICAL CENTRE,35080469,"5,745.00",DEMSUG,S6 4JQ
Department of Health,NHS Sheffield CCG,12/31/2020,C&M-GMS Global Sum,PRC DELEGATED CO-COMMISSIONING,TRAMWAYS MEDICAL CENTRE,35080469,"63,627.17",GSUMG,S6 4JQ
Department of Health,NHS Sheffield CCG,12/31/2020,C&M-GMS PCN DES Participation,PRC DELEGATED CO-COMMISSIONING,TRAMWAYS MEDICAL CENTRE,35080469,"2,516.92",PARTIG,S6 4JQ
Department of Health,NHS Sheffield CCG,12/31/2020,C&M-GMS PCO Other,PRC DELEGATED CO-COMMISSIONING,TRAMWAYS MEDICAL CENTRE,35080469,530.40,CQCRG,S6 4JQ
Department of Health,NHS Sheffield CCG,12/31/2020,C&M-GMS Prem Cost Rent,PRC DELEGATED CO-COMMISSIONING,TRAMWAYS MEDICAL CENTRE,35080469,"4,012.75",COST,S6 4JQ
Department of Health,NHS Sheffield CCG,12/31/2020,C&M-GMS Prem Rates,PRC DELEGATED CO-COMMISSIONING,TRAMWAYS MEDICAL CENTRE,35080469,"1,310.00",RANDR,S6 4JQ
Department of Health,NHS Sheffield CCG,12/31/2020,C&M-GMS Prem Water Rates,PRC DELEGATED CO-COMMISSIONING,TRAMWAYS MEDICAL CENTRE,35080469,289.12,RAMW,S6 4JQ
Department of Health,NHS Sheffield CCG,12/31/2020,C&M-GMS Prof Fees Prescribing,PRC DELEGATED CO-COMMISSIONING,TRAMWAYS MEDICAL CENTRE,35080469,"1,924.81",DRGPPF,S6 4JQ
Department of Health,NHS Sheffield CCG,12/31/2020,C&M-GMS QOF Aspiration,PRC DELEGATED CO-COMMISSIONING,TRAMWAYS MEDICAL CENTRE,35080469,"5,986.86",QUASPG,S6 4JQ
Department of Health,NHS Sheffield CCG,12/31/2020,C&M-PMS Contract Value,PRC DELEGATED CO-COMMISSIONING,UNIVERSITY HEALTH SERVICE,34893518,"-14,869.61",BABALP,S3 7QP
Department of Health,NHS Sheffield CCG,12/31/2020,C&M-PMS DES Extended Hours Access,PRC DELEGATED CO-COMMISSIONING,UNIVERSITY HEALTH SERVICE,34893518,"-4,929.28",EXTHDP,S3 7QP
Department of Health,NHS Sheffield CCG,12/31/2020,C&M-PMS GP Statutory Levy,PRC DELEGATED CO-COMMISSIONING,UNIVERSITY HEALTH SERVICE,34893518,"-1,411.59",STATL,S3 7QP
Department of Health,NHS Sheffield CCG,12/31/2020,C&M-PMS Out of Hours Opt Outs,PRC DELEGATED CO-COMMISSIONING,UNIVERSITY HEALTH SERVICE,34893518,"-9,930.40",APMOOH,S3 7QP
Department of Health,NHS Sheffield CCG,12/31/2020,C&M-PMS PCN DES Clinical Director,PRC DELEGATED CO-COMMISSIONING,UNIVERSITY HEALTH SERVICE,34893518,"-2,454.44",CLINDP,S3 7QP
Department of Health,NHS Sheffield CCG,12/31/2020,C&M-PMS PCN DES PCN support,LOCAL ENHANCED SERVICES,UNIVERSITY HEALTH SERVICE,34893518,"-5,099.25",PCNSUP,S3 7QP
Department of Health,NHS Sheffield CCG,12/31/2020,C&M-PMS PCN DES Participation,PRC DELEGATED CO-COMMISSIONING,UNIVERSITY HEALTH SERVICE,34893518,"-3,871.12",PARTIP,S3 7QP
Department of Health,NHS Sheffield CCG,12/31/2020,C&M-PMS Contract Value,PRC DELEGATED CO-COMMISSIONING,UNIVERSITY HEALTH SERVICE,34893519,"208,256.86",BABALP,S3 7QP
Department of Health,NHS Sheffield CCG,12/31/2020,C&M-PMS DES Extended Hours Access,PRC DELEGATED CO-COMMISSIONING,UNIVERSITY HEALTH SERVICE,34893519,"9,865.48",EXTHDP,S3 7QP
Department of Health,NHS Sheffield CCG,12/31/2020,C&M-PMS Out of Hours Opt Outs,PRC DELEGATED CO-COMMISSIONING,UNIVERSITY HEALTH SERVICE,34893519,712.50,APMOOH,S3 7QP
Department of Health,NHS Sheffield CCG,12/31/2020,C&M-PMS PCN DES Clinical Director,PRC DELEGATED CO-COMMISSIONING,UNIVERSITY HEALTH SERVICE,34893519,"4,902.14",CLINDP,S3 7QP
Department of Health,NHS Sheffield CCG,12/31/2020,C&M-PMS PCN DES PCN support,LOCAL ENHANCED SERVICES,UNIVERSITY HEALTH SERVICE,34893519,"10,198.63",PCNSUP,S3 7QP
Department of Health,NHS Sheffield CCG,12/31/2020,C&M-PMS PCN DES Participation,PRC DELEGATED CO-COMMISSIONING,UNIVERSITY HEALTH SERVICE,34893519,"7,748.83",PARTIP,S3 7QP
Department of Health,NHS Sheffield CCG,12/31/2020,C&M-PMS Prem Notional Rent,PRC DELEGATED CO-COMMISSIONING,UNIVERSITY HEALTH SERVICE,34893519,"15,833.33",NRENT,S3 7QP
Department of Health,NHS Sheffield CCG,12/31/2020,C&M-PMS QOF Aspiration,PRC DELEGATED CO-COMMISSIONING,UNIVERSITY HEALTH SERVICE,34893519,"7,529.34",QUASPP,S3 7QP
Department of Health,NHS Sheffield CCG,12/31/2020,C&M-PMS Additional Staff Payments,PRC DELEGATED CO-COMMISSIONING,UNIVERSITY HEALTH SERVICE,34993322,"55,257.00",COVID CAPACITY EXPANSION FUND 202021,S3 7QP
Department of Health,NHS Sheffield CCG,12/31/2020,C&M-GMS Other Addtl Staff Paymts,PRC DELEGATED CO-COMMISSIONING,UPPERTHORPE MEDICAL CENTRE,34993326,"27,117.00",COVID CAPACITY EXPANSION FUND 202021,S6 3FT
Department of Health,NHS Sheffield CCG,12/31/2020,C&M-GMS Cost of Drugs -Prescribing,LOCAL ENHANCED SERVICES,UPPERTHORPE MEDICAL CENTRE,35080472,"24,555.43",DRGP,S6 3FT
Department of Health,NHS Sheffield CCG,12/31/2020,C&M-GMS DES Minor Surgery,PRC DELEGATED CO-COMMISSIONING,UPPERTHORPE MEDICAL CENTRE,35080472,240.00,DEMSUG,S6 3FT
Department of Health,NHS Sheffield CCG,12/31/2020,C&M-GMS Global Sum,PRC DELEGATED CO-COMMISSIONING,UPPERTHORPE MEDICAL CENTRE,35080472,"89,693.58",GSUMG,S6 3FT
Department of Health,NHS Sheffield CCG,12/31/2020,C&M-GMS PCN DES Participation,PRC DELEGATED CO-COMMISSIONING,UPPERTHORPE MEDICAL CENTRE,35080472,"3,488.03",PARTIG,S6 3FT
Department of Health,NHS Sheffield CCG,12/31/2020,C&M-GMS Prem Actual Rent,PRC DELEGATED CO-COMMISSIONING,UPPERTHORPE MEDICAL CENTRE,35080472,"29,475.00",RENT,S6 3FT
Department of Health,NHS Sheffield CCG,12/31/2020,C&M-GMS Prem Notional Rent,PRC DELEGATED CO-COMMISSIONING,UPPERTHORPE MEDICAL CENTRE,35080472,"2,547.83",NRENT,S6 3FT
Department of Health,NHS Sheffield CCG,12/31/2020,C&M-GMS Prem Rates,PRC DELEGATED CO-COMMISSIONING,UPPERTHORPE MEDICAL CENTRE,35080472,"1,265.20",RANDR,S6 3FT
Department of Health,NHS Sheffield CCG,12/31/2020,C&M-GMS Prem Water Rates,PRC DELEGATED CO-COMMISSIONING,UPPERTHORPE MEDICAL CENTRE,35080472,162.70,RAMW,S6 3FT
Department of Health,NHS Sheffield CCG,12/31/2020,C&M-GMS Prof Fees Prescribing,PRC DELEGATED CO-COMMISSIONING,UPPERTHORPE MEDICAL CENTRE,35080472,"5,815.93",DRGPPF,S6 3FT
Department of Health,NHS Sheffield CCG,12/31/2020,C&M-GMS QOF Aspiration,PRC DELEGATED CO-COMMISSIONING,UPPERTHORPE MEDICAL CENTRE,35080472,"9,300.36",QUASPG,S6 3FT
Department of Health,NHS Sheffield CCG,12/31/2020,C&M-PMS Contract Value,PRC DELEGATED CO-COMMISSIONING,UPWELL STREET SURGERY,34893521,"37,024.50",BABALP,S4 8AN
Department of Health,NHS Sheffield CCG,12/31/2020,C&M-PMS Funding Differential Review,PRC DELEGATED CO-COMMISSIONING,UPWELL STREET SURGERY,34893521,911.19,ZFUNFP,S4 8AN
Department of Health,NHS Sheffield CCG,12/31/2020,C&M-PMS Out of Hours Opt Outs,PRC DELEGATED CO-COMMISSIONING,UPWELL STREET SURGERY,34893521,61.01,APMOOH,S4 8AN
Department of Health,NHS Sheffield CCG,12/31/2020,C&M-PMS PCN DES Participation,PRC DELEGATED CO-COMMISSIONING,UPWELL STREET SURGERY,34893521,"1,375.79",PARTIP,S4 8AN
Department of Health,NHS Sheffield CCG,12/31/2020,C&M-PMS Prem Notional Rent,PRC DELEGATED CO-COMMISSIONING,UPWELL STREET SURGERY,34893521,"8,137.50",NRENT,S4 8AN
Department of Health,NHS Sheffield CCG,12/31/2020,C&M-PMS Prem Rates,PRC DELEGATED CO-COMMISSIONING,UPWELL STREET SURGERY,34893521,"1,362.00",RANDRP,S4 8AN
Department of Health,NHS Sheffield CCG,12/31/2020,C&M-PMS QOF Aspiration,PRC DELEGATED CO-COMMISSIONING,UPWELL STREET SURGERY,34893521,"3,919.87",QUASPP,S4 8AN
Department of Health,NHS Sheffield CCG,12/31/2020,C&M-PMS DES Extended Hours Access,PRC DELEGATED CO-COMMISSIONING,VALLEY MEDICAL CENTRE,34893522,"-2,507.53",EXTHDP,S36 1BX
Department of Health,NHS Sheffield CCG,12/31/2020,C&M-PMS GP Statutory Levy,PRC DELEGATED CO-COMMISSIONING,VALLEY MEDICAL CENTRE,34893522,-335.51,STATL,S36 1BX
Department of Health,NHS Sheffield CCG,12/31/2020,C&M-PMS Out of Hours Opt Outs,PRC DELEGATED CO-COMMISSIONING,VALLEY MEDICAL CENTRE,34893522,"-3,903.34",APMOOH,S36 1BX
Department of Health,NHS Sheffield CCG,12/31/2020,C&M-PMS PCN DES Clinical Director,PRC DELEGATED CO-COMMISSIONING,VALLEY MEDICAL CENTRE,34893522,"-1,248.58",CLINDP,S36 1BX
Department of Health,NHS Sheffield CCG,12/31/2020,C&M-PMS PCN DES PCN support,LOCAL ENHANCED SERVICES,VALLEY MEDICAL CENTRE,34893522,"-2,594.00",PCNSUP,S36 1BX
Department of Health,NHS Sheffield CCG,12/31/2020,C&M-PMS PCN DES Participation,PRC DELEGATED CO-COMMISSIONING,VALLEY MEDICAL CENTRE,34893522,"-1,502.00",PARTIP,S36 1BX
Department of Health,NHS Sheffield CCG,12/31/2020,C&M-PMS Contract Value,PRC DELEGATED CO-COMMISSIONING,VALLEY MEDICAL CENTRE,34893523,"81,973.45",BABALP,S36 1BX
Department of Health,NHS Sheffield CCG,12/31/2020,C&M-PMS DES Extended Hours Access,PRC DELEGATED CO-COMMISSIONING,VALLEY MEDICAL CENTRE,34893523,"5,018.52",EXTHDP,S36 1BX
Department of Health,NHS Sheffield CCG,12/31/2020,C&M-PMS Funding Differential Review,PRC DELEGATED CO-COMMISSIONING,VALLEY MEDICAL CENTRE,34893523,"1,519.02",ZFUNFP,S36 1BX
Department of Health,NHS Sheffield CCG,12/31/2020,C&M-PMS PCN DES Clinical Director,PRC DELEGATED CO-COMMISSIONING,VALLEY MEDICAL CENTRE,34893523,"2,493.70",CLINDP,S36 1BX
Department of Health,NHS Sheffield CCG,12/31/2020,C&M-PMS PCN DES PCN support,LOCAL ENHANCED SERVICES,VALLEY MEDICAL CENTRE,34893523,"5,188.00",PCNSUP,S36 1BX
Department of Health,NHS Sheffield CCG,12/31/2020,C&M-PMS PCN DES Participation,PRC DELEGATED CO-COMMISSIONING,VALLEY MEDICAL CENTRE,34893523,"3,006.56",PARTIP,S36 1BX
Department of Health,NHS Sheffield CCG,12/31/2020,C&M-PMS PCO Locum Adop/Pat/Mat,PRC DELEGATED CO-COMMISSIONING,VALLEY MEDICAL CENTRE,34893523,"15,378.88",SICKC,S36 1BX
Department of Health,NHS Sheffield CCG,12/31/2020,C&M-PMS Prem Actual Rent,PRC DELEGATED CO-COMMISSIONING,VALLEY MEDICAL CENTRE,34893523,"25,468.75",RENT,S36 1BX
Department of Health,NHS Sheffield CCG,12/31/2020,C&M-PMS Prem Rates,PRC DELEGATED CO-COMMISSIONING,VALLEY MEDICAL CENTRE,34893523,"1,784.00",RANDRP,S36 1BX
Department of Health,NHS Sheffield CCG,12/31/2020,C&M-PMS QOF Aspiration,PRC DELEGATED CO-COMMISSIONING,VALLEY MEDICAL CENTRE,34893523,"9,062.68",QUASPP,S36 1BX
Department of Health,NHS Sheffield CCG,12/31/2020,Cont Care-Physical Disab (<65),CHC ADULT FULLY FUNDED,VALORUM CARE LTD,34880777,"36,951.18",CHC SCHEDULE DECEMBER 2020 - Valorum Care Limited (Mickley Hall),LS19 7RW
Department of Health,NHS Sheffield CCG,12/31/2020,C&M-GMS Other Addtl Staff Paymts,PRC DELEGATED CO-COMMISSIONING,WALKLEY HOUSE MEDICAL CENTRE,34993338,"27,494.00",COVID CAPACITY EXPANSION FUND 202021,S6 3TN
Department of Health,NHS Sheffield CCG,12/31/2020,C&M-GMS Cost of Drugs -Prescribing,LOCAL ENHANCED SERVICES,WALKLEY HOUSE MEDICAL CENTRE,35080478,"20,514.58",DRGP,S6 3TN
Department of Health,NHS Sheffield CCG,12/31/2020,C&M-GMS Global Sum,PRC DELEGATED CO-COMMISSIONING,WALKLEY HOUSE MEDICAL CENTRE,35080478,"90,751.63",GSUMG,S6 3TN
Department of Health,NHS Sheffield CCG,12/31/2020,C&M-GMS PCN DES Participation,PRC DELEGATED CO-COMMISSIONING,WALKLEY HOUSE MEDICAL CENTRE,35080478,"3,522.09",PARTIG,S6 3TN
Department of Health,NHS Sheffield CCG,12/31/2020,C&M-GMS Prem Notional Rent,PRC DELEGATED CO-COMMISSIONING,WALKLEY HOUSE MEDICAL CENTRE,35080478,"5,635.50",NRENT,S6 3TN
Department of Health,NHS Sheffield CCG,12/31/2020,C&M-GMS Prem Rates,PRC DELEGATED CO-COMMISSIONING,WALKLEY HOUSE MEDICAL CENTRE,35080478,"2,517.00",RANDR,S6 3TN
Department of Health,NHS Sheffield CCG,12/31/2020,C&M-GMS Prof Fees Prescribing,PRC DELEGATED CO-COMMISSIONING,WALKLEY HOUSE MEDICAL CENTRE,35080478,"4,911.04",DRGPPF,S6 3TN
Department of Health,NHS Sheffield CCG,12/31/2020,C&M-GMS QOF Aspiration,PRC DELEGATED CO-COMMISSIONING,WALKLEY HOUSE MEDICAL CENTRE,35080478,"8,644.85",QUASPG,S6 3TN
Department of Health,NHS Sheffield CCG,12/31/2020,C&M-GMS Cost of Drugs -Prescribing,LOCAL ENHANCED SERVICES,WHITE HOUSE SURGERY SHEFFIELD,35080476,298.24,DRGP,S2 1SL
Department of Health,NHS Sheffield CCG,12/31/2020,C&M-GMS Global Sum,PRC DELEGATED CO-COMMISSIONING,WHITE HOUSE SURGERY SHEFFIELD,35080476,"55,359.44",GSUMG,S2 1SL
Department of Health,NHS Sheffield CCG,12/31/2020,C&M-GMS PCN DES Participation,PRC DELEGATED CO-COMMISSIONING,WHITE HOUSE SURGERY SHEFFIELD,35080476,"2,112.47",PARTIG,S2 1SL
Department of Health,NHS Sheffield CCG,12/31/2020,C&M-GMS Prem Notional Rent,PRC DELEGATED CO-COMMISSIONING,WHITE HOUSE SURGERY SHEFFIELD,35080476,"9,412.50",NRENT,S2 1SL
Department of Health,NHS Sheffield CCG,12/31/2020,C&M-GMS Prem Rates,PRC DELEGATED CO-COMMISSIONING,WHITE HOUSE SURGERY SHEFFIELD,35080476,"2,483.00",RANDR,S2 1SL
Department of Health,NHS Sheffield CCG,12/31/2020,C&M-GMS Prof Fees Prescribing,PRC DELEGATED CO-COMMISSIONING,WHITE HOUSE SURGERY SHEFFIELD,35080476,133.45,DRGPPF,S2 1SL
Department of Health,NHS Sheffield CCG,12/31/2020,C&M-GMS QOF Aspiration,PRC DELEGATED CO-COMMISSIONING,WHITE HOUSE SURGERY SHEFFIELD,35080476,"6,054.80",QUASPG,S2 1SL
Department of Health,NHS Sheffield CCG,12/31/2020,Cont Care-Physical Disab (<65),CHC ADULT FULLY FUNDED,WILLOWBECK HEALTH CARE LTD,34880760,"159,503.62",CHC SCHEDULE DECEMBER 2020 - Willowbeck Health Care Ltd (Exemplar HC),S4 8AR
Department of Health,NHS Sheffield CCG,12/31/2020,C&M-PMS Contract Value,PRC DELEGATED CO-COMMISSIONING,WINCOBANK MEDICAL CENTRE,34893527,"63,698.76",BABALP,S9 1DJ
Department of Health,NHS Sheffield CCG,12/31/2020,C&M-PMS Funding Differential Review,PRC DELEGATED CO-COMMISSIONING,WINCOBANK MEDICAL CENTRE,34893527,"1,151.96",ZFUNFP,S9 1DJ
Department of Health,NHS Sheffield CCG,12/31/2020,C&M-PMS Out of Hours Opt Outs,PRC DELEGATED CO-COMMISSIONING,WINCOBANK MEDICAL CENTRE,34893527,13.46,APMOOH,S9 1DJ
Department of Health,NHS Sheffield CCG,12/31/2020,C&M-PMS PCN DES Participation,PRC DELEGATED CO-COMMISSIONING,WINCOBANK MEDICAL CENTRE,34893527,"2,384.65",PARTIP,S9 1DJ
Department of Health,NHS Sheffield CCG,12/31/2020,C&M-PMS Prem Healthcentre Rent,PRC DELEGATED CO-COMMISSIONING,WINCOBANK MEDICAL CENTRE,34893527,"46,340.33",HEALTH,S9 1DJ
Department of Health,NHS Sheffield CCG,12/31/2020,C&M-PMS QOF Aspiration,PRC DELEGATED CO-COMMISSIONING,WINCOBANK MEDICAL CENTRE,34893527,"5,972.45",QUASPP,S9 1DJ
Department of Health,NHS Sheffield CCG,12/31/2020,C&M-PMS Contract Value,PRC DELEGATED CO-COMMISSIONING,WOODHOUSE HEALTH CENTRE,34893524,"-1,714.09",BABALP,S13 7LY
Department of Health,NHS Sheffield CCG,12/31/2020,C&M-PMS GP Statutory Levy,PRC DELEGATED CO-COMMISSIONING,WOODHOUSE HEALTH CENTRE,34893524,-425.64,STATL,S13 7LY
Department of Health,NHS Sheffield CCG,12/31/2020,C&M-PMS Out of Hours Opt Outs,PRC DELEGATED CO-COMMISSIONING,WOODHOUSE HEALTH CENTRE,34893524,"-4,904.50",APMOOH,S13 7LY
Department of Health,NHS Sheffield CCG,12/31/2020,C&M-PMS PCN DES Participation,PRC DELEGATED CO-COMMISSIONING,WOODHOUSE HEALTH CENTRE,34893524,"-1,913.91",PARTIP,S13 7LY
Department of Health,NHS Sheffield CCG,12/31/2020,C&M-PMS Contract Value,PRC DELEGATED CO-COMMISSIONING,WOODHOUSE HEALTH CENTRE,34893525,"103,028.71",BABALP,S13 7LY
Department of Health,NHS Sheffield CCG,12/31/2020,C&M-PMS Funding Differential Review,PRC DELEGATED CO-COMMISSIONING,WOODHOUSE HEALTH CENTRE,34893525,"2,095.91",ZFUNFP,S13 7LY
Department of Health,NHS Sheffield CCG,12/31/2020,C&M-PMS Out of Hours Opt Outs,PRC DELEGATED CO-COMMISSIONING,WOODHOUSE HEALTH CENTRE,34893525,80.74,APMOOH,S13 7LY
Department of Health,NHS Sheffield CCG,12/31/2020,C&M-PMS PCN DES Participation,PRC DELEGATED CO-COMMISSIONING,WOODHOUSE HEALTH CENTRE,34893525,"1,913.91",PARTIP,S13 7LY
Department of Health,NHS Sheffield CCG,12/31/2020,C&M-PMS PCO Other,PRC DELEGATED CO-COMMISSIONING,WOODHOUSE HEALTH CENTRE,34893525,751.30,CQCRP,S13 7LY
Department of Health,NHS Sheffield CCG,12/31/2020,C&M-PMS Prem Notional Rent,PRC DELEGATED CO-COMMISSIONING,WOODHOUSE HEALTH CENTRE,34893525,"6,338.58",NRENT,S13 7LY
Department of Health,NHS Sheffield CCG,12/31/2020,C&M-PMS Prem Rates,PRC DELEGATED CO-COMMISSIONING,WOODHOUSE HEALTH CENTRE,34893525,286.27,RANDRP,S13 7LY
Department of Health,NHS Sheffield CCG,12/31/2020,C&M-PMS QOF Aspiration,PRC DELEGATED CO-COMMISSIONING,WOODHOUSE HEALTH CENTRE,34893525,"13,397.77",QUASPP,S13 7LY
Department of Health,NHS Sheffield CCG,12/31/2020,C&M-PMS Additional Staff Payments,PRC DELEGATED CO-COMMISSIONING,WOODHOUSE HEALTH CENTRE,34993351,"28,965.00",COVID CAPACITY EXPANSION FUND 202021,S13 7LY
Department of Health,NHS Sheffield CCG,12/31/2020,C&M-PMS Contract Value,PRC DELEGATED CO-COMMISSIONING,WOODSEATS MEDICAL CENTRE,34894458,"82,286.74",BABALP,S8 0SH
Department of Health,NHS Sheffield CCG,12/31/2020,C&M-PMS Funding Differential Review,PRC DELEGATED CO-COMMISSIONING,WOODSEATS MEDICAL CENTRE,34894458,"1,061.06",ZFUNFP,S8 0SH
Department of Health,NHS Sheffield CCG,12/31/2020,C&M-PMS Out of Hours Opt Outs,PRC DELEGATED CO-COMMISSIONING,WOODSEATS MEDICAL CENTRE,34894458,13.08,APMOOH,S8 0SH
Department of Health,NHS Sheffield CCG,12/31/2020,C&M-PMS PCN DES Participation,PRC DELEGATED CO-COMMISSIONING,WOODSEATS MEDICAL CENTRE,34894458,"3,012.16",PARTIP,S8 0SH
Department of Health,NHS Sheffield CCG,12/31/2020,C&M-PMS PCO Locum Adop/Pat/Mat,PRC DELEGATED CO-COMMISSIONING,WOODSEATS MEDICAL CENTRE,34894458,"2,286.12",SICKC,S8 0SH
Department of Health,NHS Sheffield CCG,12/31/2020,C&M-PMS PCO Other,PRC DELEGATED CO-COMMISSIONING,WOODSEATS MEDICAL CENTRE,34894458,645.70,CQCRP,S8 0SH
Department of Health,NHS Sheffield CCG,12/31/2020,C&M-PMS Prem Notional Rent,PRC DELEGATED CO-COMMISSIONING,WOODSEATS MEDICAL CENTRE,34894458,"11,666.67",NRENT,S8 0SH
Department of Health,NHS Sheffield CCG,12/31/2020,C&M-PMS QOF Aspiration,PRC DELEGATED CO-COMMISSIONING,WOODSEATS MEDICAL CENTRE,34894458,"8,588.98",QUASPP,S8 0SH
Department of Health,NHS Sheffield CCG,12/31/2020,Hcare Srv Rec NHS Trust-Contract Baseline,AMBULANCE SERVICES,YORKSHIRE AMBULANCE SERVICE NHS TRUST,34937486,"2,402,179.62",,WF2 0XQ
